{"text_format":"1","workbook":"xlsx","n_sheets":9,"sheets":["Раздел 0","Раздел I","Раздел II","Раздел III","Раздел IV","Раздел V","Раздел VI","Раздел VII","Раздел VIII"],"not_rendered":{"charts":0,"images":0,"macros":1,"external_links":0,"defined_names":0,"comments":0,"pivot_tables":0},"unopened":[],"bounds":{"document_bytes":16777216,"sheet_cells":100000,"rows_first":2000,"rows_last":500,"rows_between":2000,"halvings":0,"cell_chars":16384,"cell_head_chars":4096},"cells_cut":0,"cells_raw":0,"read":"whole","date_system":"1900"}

{"sheet":"Раздел 0","index":0,"n_rows":25,"n_cols":10,"rows_kept":25,"cut":false,"hidden":false,"merged":[[23,0,23,2],[23,3,23,4],[23,5,23,7],[23,8,23,10],[24,0,24,2],[24,3,24,4],[24,5,24,7],[24,8,24,10],[17,1,17,3],[17,4,17,9],[19,2,19,9],[21,0,22,2],[21,3,21,10],[22,3,22,4],[22,5,22,7],[22,8,22,10],[12,1,12,5],[13,1,13,5],[14,1,15,5],[14,6,15,6],[12,9,14,10],[15,9,15,10],[11,0,11,5],[11,9,11,10],[1,0,1,10],[3,0,3,10],[5,0,5,10],[7,0,7,10],[9,0,9,10]]}
[]
["ФЕДЕРАЛЬНОЕ СТАТИСТИЧЕСКОЕ НАБЛЮДЕНИЕ"]
[]
["КОНФИДЕНЦИАЛЬНОСТЬ ГАРАНТИРУЕТСЯ ПОЛУЧАТЕЛЕМ ИНФОРМАЦИИ"]
[]
["Нарушение порядка предоставления первичных статистических данных или несвоевременное предоставление этих данных, либо предоставление недостоверных первичных\nстатистических данных влечет ответственность, установленную Кодексом Российской Федерации об административных правонарушениях"]
[]
["Обязанность предоставления административных данных предусмотрена статьей 8 Федерального закона от 29 ноября 2007 г.\n№ 282-ФЗ \"Об официальном статистическом учете и системе государственной статистики в Российской Федерации"]
[]
["СВЕДЕНИЯ ОБ АДАПТИВНОЙ ФИЗИЧЕСКОЙ КУЛЬТУРЕ И СПОРТЕ\nпо состоянию на 31 декабря 20 ___ г."]
[]
["Предоставляют:",null,null,null,null,null,"Сроки предоставления",null,null,"Форма № 3-АФК"]
[null,"юридические лица, включая общественные организации, осуществляющие\nдеятельность по адаптивной физической культуре и спорту:\n- органу местного самоуправления в области физической культуры и спорта",null,null,null,null,"15 января после\nотчетного периода",null,null,"Приказ Росстата:\nОб утверждении формы\nот ___________ № ___\nО внесении изменений (при наличии)\nот ___________ № ___\nот ___________ № ___"]
[null,"органы местного самоуправления в области физической культуры и спорта:\n- органу исполнительной власти субъекта Российской Федерации в области\nфизической культуры и спорта",null,null,null,null,"25 января после\nотчетного периода"]
[null,"органы исполнительной власти субъектов Российской Федерации в области\nфизической культуры и спорта:\n- Министерству спорта Российской Федерации",null,null,null,null,"10 февраля после\nотчетного периода"]
[null,null,null,null,null,null,null,null,null,"Годовая"]
[]
[null,"Наименование отчитывающейся организации"]
[]
[null,"Почтовый адрес"]
[]
["Код формы\nпо ОКУД",null,null,"Код"]
[null,null,null,"отчитывающейся организации по ОКПО\n(для обособленного подразделения и головного\nподразделения юридического лица -\nидентификационный номер)"]
[1,null,null,2,null,3,null,null,4]
[609405]

{"sheet":"Раздел I","index":1,"n_rows":38,"n_cols":21,"rows_kept":38,"cut":false,"hidden":false,"merged":[[37,4,37,11],[35,4,35,11],[2,7,3,7],[2,8,2,15],[2,16,2,20],[1,7,1,20],[0,0,0,20],[2,5,2,6],[1,2,3,2],[1,1,3,1],[1,0,3,0],[1,3,1,6],[2,4,3,4],[2,3,3,3]]}
["Раздел I. Физкультурно-оздоровительная и спортивная работа"]
["Учреждения, объединения, организации,\nосуществляющие работу с инвалидами","№\nстроки","Количество\nучреждений,\nобъединений,\nорганизаций,\nвсего, ед","Численность работников, чел",null,null,null,"Численность систематически занимающихся адаптивной физической культурой и спортом, чел"]
[null,null,null,"Всего","в том числе\nпо основному\nместу работы","из них имеют образование по специальности\n\"Адаптивная физическая культура и спорт\"\n(из гр. 4)",null,"Всего","в том числе по возрастным группам (из гр. 8)",null,null,null,null,null,null,null,"в том числе по нозологическим группам (из гр. 8)"]
[null,null,null,null,null,"высшее","среднее",null,"от 0 до 3\nлет","от 4 до 7\nлет","от 8 до 14\nлет","от 15 до 17\nлет","от 18 до 29\nлет","от 30 до 59\nлет","от 60 до 79\nлет","от 80 лет\nи старше","лица, имеющие\nинвалидность\nпо общему\nзаболеванию","лица\nс нарушением\nинтеллекта","лица\nс нарушением\nзрения","лица\nс нарушением\nслуха","лица\nс нарушением\nОДА"]
[1,2,3,4,5,6,7,8,9,10,11,12,13,14,15,16,17,18,19,20,21]
["Всего учреждений, объединений,\nорганизаций (сумма строк 02, 10, 17, 21, 24)",1,{"$f":" SUM(C7,C15,C22,C26,C29)","v":0},{"$f":" SUM(D7,D15,D22,D26,D29)","v":0},0,0,0,0,0,0,0,0,0,0,0,0,0,0,0,0,0]
["Всего в сфере физической культуры\nи спорта",2,{"$f":"SUM(C8:C14)","v":0},{"$f":"SUM(D8:D14)","v":0},0,0,0,0,0,0,0,0,0,0,0,0,0,0,0,0,0]
["  в том числе:\n  спортивно-адаптивные школы",3,null,null,null,null,null,{"$f":"SUM(I8:P8)","v":0}]
["  спортивно-адаптивные школы\n  паралимпийского и (или) сурдлимпийского\n  резерва",4,null,null,null,null,null,{"$f":"SUM(I9:P9)","v":0}]
["  центры подготовки спортивного резерва\n  по адаптивным видам спорта",5,null,null,null,null,null,0]
["  СШ, СШОР, УОР",6,null,null,null,null,null,0]
["  физкультурно-спортивные клубы\n  инвалидов",7,null,null,null,null,null,0]
["  учреждения и организации\n  при спортивных сооружениях",8,null,null,null,null,null,0]
["  другие организации",9,null,null,null,null,null,0]
["Всего в сфере образования",10,{"$f":"SUM(C16:C21)","v":0},{"$f":"SUM(D16:D21)","v":0},0,0,0,0,0,0,0,0,0,0,0,0,0,0,0,0,0]
["  в том числе:\n  дошкольные образовательные\n  организации",11,null,null,null,null,null,0]
["  общеобразовательные организации",12,null,null,null,null,null,0]
["  профессиональные образовательные\n  организации",13,null,null,null,null,null,0]
["  образовательные организации высшего\n  образования",14,null,null,null,null,null,0]
["  организации дополнительного\n  образования",15,null,null,null,null,null,0]
["  другие организации",16,null,null,null,null,null,0]
["Всего в сфере труда и социальной\nзащиты",17,{"$f":"SUM(C23:C25)","v":0},{"$f":"SUM(D23:D25)","v":0},0,0,0,0,0,0,0,0,0,0,0,0,0,0,0,0,0]
["  в том числе:\n  центры реабилитации инвалидов",18,null,null,null,null,null,0]
["  стационарные учреждения социального\n  обслуживания",19,null,null,null,null,null,0]
["  другие организации",20,null,null,null,null,null,0]
["Всего в сфере здравоохранения",21,{"$f":"SUM(C27:C28)","v":0},{"$f":"SUM(D27:D28)","v":0},0,0,0,0,0,0,0,0,0,0,0,0,0,0,0,0,0]
["  в том числе:\n  лечебно-профилактические медицинские\n  организации",22,null,null,null,null,null,0]
["  другие организации",23,null,null,null,null,null,0]
["Всего организаций другой ведомственной\nпринадлежности",24,{"$f":"SUM(C30:C33)","v":0},{"$f":"SUM(D30:D33)","v":0},0,0,0,0,0,0,0,0,0,0,0,0,0,0,0,0,0]
["  в том числе:\n  региональные организации ВОГ",25,null,null,null,null,null,0]
["  региональные организации ВОИ",26,null,null,null,null,null,0]
["  региональные организации ВОС",27,null,null,null,null,null,0]
["  другие организации",28,null,null,null,null,null,0]
["Из строки 01 - всего в сельской местности",29]
[]
[null,null,null,"Справочно","Из гр. 8 - численность систематически занимающихся адаптивной физической культурой и спортом в возрасте от 6 до 17 лет",null,null,null,null,null,null,null,"(30)",null,"чел"]
[]
[null,null,null,null,"Из гр. 8 - численность систематически занимающихся адаптивной физической культурой и спортом в возрасте от 6 до 18 лет",null,null,null,null,null,null,null,"(31)",null,"чел"]

{"sheet":"Раздел II","index":2,"n_rows":40,"n_cols":17,"rows_kept":40,"cut":false,"hidden":false,"merged":[[2,14,3,14],[2,15,3,15],[2,16,3,16],[1,0,3,0],[2,7,3,7],[1,2,1,7],[0,0,0,16],[2,8,3,8],[2,9,3,9],[2,10,3,10],[2,11,3,11],[2,12,3,12],[2,13,3,13],[2,3,2,6],[1,1,3,1],[2,2,3,2],[1,8,1,13],[1,14,1,16]]}
["Раздел II. Объекты спортивной инфраструктуры, доступные для инвалидов"]
["Наименование спортивного\nсооружения","№\nстроки","Количество спортивных сооружений, ед",null,null,null,null,null,"Доступность объектов и предоставляемых услуг, ед",null,null,null,null,null,"Численность штатных сотрудников, чел"]
[null,null,"Всего","в том числе по форме собственности",null,null,null,"оснащенные\n(из гр. 3)","Существующие\nспортивные сооружения,\nкоторые в результате\nпроведения капитального\nремонта, реконструкции,\nмодернизации полностью\nсоответствуют требованиям\nдоступности объектов\nи услуг для инвалидов","Вновь введенные\nв эксплуатацию спортивные\nсооружения, полностью\nсоответствующие\nтребованиям доступности\nобъектов и услуг для\nинвалидов, в которых\nпредоставляются услуги\nнаселению","Имеющие\nутвержденные паспорта\nдоступности объектов\nи предоставляемых услуг\nдля инвалидов","На которых\nобеспечиваются условия\nиндивидуальной\nмобильности инвалидов\nи возможность\nдля самостоятельного их\nпередвижения по зданию\nи (при необходимости)\nпо территории объекта","На которых\nобеспечено сопровождение\nинвалидов, имеющих\nстойкие расстройства\nфункции зрения\nи самостоятельного\nпередвижения, оказание\nим помощи на объектах","На которых\nпредоставляются услуги\nинвалидам по слуху\nс использованием русского\nжестового языка, включая\nобеспечение допуска на\nобъект сурдопереводчика,\nтифлопереводчика","Предоставляющих\nуслуги инвалидам","Прошедших\nинструктирование\nили обучение\nдля работы\nс инвалидами","Предоставляющих\nуслуги, на которых\nвозложено оказание\nинвалидам помощи\nпри предоставлении\nим услуг"]
[null,null,null,"федеральной","субъектов\nРоссийской\nФедерации","муниципальной","другой"]
[1,2,3,4,5,6,7,8,9,10,11,12,13,14,15,16,17]
["Всего объектов спортивной инфраструктуры\n(сумма строк 02, 29)",1,{"$f":"SUM(C7,C34)","v":0},{"$f":"SUM(D7,D34)","v":0},0,0,0,0,0,0,0,0,0,0,0,0,0]
["Всего спортивных сооружений\nв том числе:",2,{"$f":"SUM(C8:C10,C14:C15,C19:C20,C26:C28,C32:C33)","v":0},{"$f":"SUM(D8:D10,D14:D15,D19:D20,D26:D28,D32:D33)","v":0},0,0,0,0,0,0,0,0,0,0,0,0,0]
["  Стадионы с трибунами на 1500 мест и более",3,{"$f":"SUM(D8:G8)","v":0}]
["  Плоскостные спортивные сооружения",4,{"$f":"SUM(D9:G9)","v":0}]
["  Спортивные залы - всего",5,0,{"$f":"SUM(D11:D13)","v":0},0,0,0,0,0,0,0,0,0,0,0,0,0]
["  в том числе размером:\n  (42х42 м)",6,0]
["  (36х18 м); (30х18 м); (30х15 м)",7,0]
["  иных размеров",8,0]
["  Крытые спортивные объекты с искусственным\n  льдом",9,0]
["  Манежи - всего",10,{"$f":"SUM(D15:G15)","v":0},{"$f":"SUM(D16:D18)","v":0},{"$f":"SUM(E16:E18)","v":0},0,0,0,0,0,0,0,0,0,0,0,0]
["  в том числе:\n  легкоатлетические",11,0]
["  конные",12,0]
["  футбольные",13,0]
["  Велотреки, велодромы",14,0]
["  Плавательные бассейны - всего",15,0,{"$f":"SUM(D21:D25)","v":0},0,0,0,0,0,0,0,0,0,0,0,0,0]
["  в том числе:\n  50-метровые",16,0]
["  25-метровые",17,0]
["  нестандартных размеров",18,0]
["  для прыжков в воду",19,0]
["  из строки 15 - крытые",20,0]
["  Лыжные базы",21,0]
["  Биатлонные комплексы",22,0]
["  Сооружения для стрелковых видов спорта\n  - всего",23,0,{"$f":"SUM(D29:D31)","v":0},0,0,0,0,0,0,0,0,0,0,0,0,0]
["  в том числе:\n  тиры",24,0]
["  стрельбища",25,0]
["  стенды",26,0]
["  Гребные базы и каналы",27,0]
["  Другие спортивные сооружения",28,0]
["  Объекты городской и рекреационной\n  инфраструктуры - всего",29,{"$f":"SUM(D34:G34)","v":0},{"$f":"SUM(D35:D39)","v":0},0,0,0,0,0,0,0,0,0,0,0,0,0]
["  в том числе:\n  универсальные спортивные площадки",30,0]
["  дистанции (велодорожки)",31,0]
["  споты (плаза начального уровня)",32,0]
["  площадки с тренажерами",33,{"$f":"SUM(D38:G38)","v":0}]
["  катки (сезонные)",34,0]
["Из строки 01 - всего в сельской местности",35]

{"sheet":"Раздел III","index":3,"n_rows":15,"n_cols":8,"rows_kept":15,"cut":false,"hidden":false,"merged":[[1,6,4,6],[1,7,4,7],[0,0,0,7],[3,4,3,5],[3,3,4,3],[2,2,4,2],[2,3,2,5],[1,0,4,0],[1,1,4,1],[1,2,1,5]]}
["Раздел III. Финансирование адаптивной физической культуры и спорта, тысяча рублей"]
["Статьи расходов","№\nстроки","Фактически выделено бюджетных средств",null,null,null,"Получено\nиз внебюджетных\nисточников","Всего израсходовано\nна развитие адаптивной\nфизической культуры\nи спорта"]
[null,null,"Всего","в том числе (из гр. 3)"]
[null,null,null,"из федерального\nбюджета","из консолидированного бюджета субъекта\nРоссийской Федерации"]
[null,null,null,null,"бюджет субъекта\nРоссийской Федерации","бюджет муниципального\nобразования"]
[1,2,3,4,5,6,7,8]
["Всего расходов",1,{"$f":"SUM(C8:C15)","v":0},{"$f":"SUM(D8:D15)","v":0},0,0,0,{"$f":"SUM(H8:H15)","v":0}]
["  в том числе:\n  организация и проведение спортивных\n  мероприятий среди инвалидов",2,{"$f":"SUM(D8:F8)","v":0},null,null,null,null,{"$f":"SUM(C8,G8)","v":0}]
["  организация и проведение физкультурных\n  и массовых спортивных мероприятий\n  среди инвалидов",3,{"$f":"SUM(D9:F9)","v":0},null,null,null,null,{"$f":"SUM(C9,G9)","v":0}]
["  приобретение спортивного оборудования,\n  инвентаря и экипировки",4,0,null,null,null,null,0]
["  капитальный ремонт спортивных\n  сооружений",5,0,null,null,null,null,0]
["  инвестиции на реконструкцию\n  и строительство спортивных сооружений",6,0,null,null,null,null,0]
["  заработная плата работников адаптивной\n  физической культуры и спорта",7,0,null,null,null,null,0]
["  содержание спортивных сооружений,\n  доступных для занятий с инвалидами",8,0,null,null,null,null,0]
["  прочие расходы",9,0,null,null,null,null,0]

{"sheet":"Раздел IV","index":4,"n_rows":144,"n_cols":25,"rows_kept":144,"cut":false,"hidden":false,"merged":[[0,0,0,24],[3,13,5,13],[3,14,5,14],[2,13,2,14],[3,15,5,15],[4,16,5,16],[4,17,4,19],[3,16,3,19],[2,5,2,12],[2,4,5,4],[1,3,5,3],[1,2,5,2],[1,1,5,1],[1,0,5,0],[4,6,4,9],[3,5,5,5],[4,20,5,20],[4,21,4,24],[3,20,3,24],[2,15,2,24],[1,4,1,24],[3,6,3,9],[3,10,5,10],[3,11,5,11],[3,12,5,12]]}
["Раздел IV. Сведения о численности обучающихся и занимающихся"]
["Наименование вида спорта,\nспортивной дисциплины","№\nстроки","Количество\nотделений\nпо видам спорта\nи (или) группам\nспортивных\nдисциплин,\nед","Базовый вид\nспорта, ед","Численность обучающихся и занимающихся на 31 декабря отчетного периода, чел"]
[null,null,null,null,"Итого обучающихся\nи занимающихся","Обучающиеся по дополнительным общеобразовательным программам в области адаптивной физической культуры и спорта",null,null,null,null,null,null,null,"Занимающиеся на спортивно-\nоздоровительном этапе\nв рамках работ",null,"Из общей численности обучающихся и занимающихся (из гр. 5)\nспортсменов, имеющих спортивные разряды, звания"]
[null,null,null,null,null,"Всего обучающихся\nпо дополнительным\nобразовательным\nпрограммам\nспортивной\nподготовки","по дополнительным образовательным программам спортивной\nподготовки",null,null,null,"в возрасте\nот 6 до 17 лет\n(из гр. 6)","по дополнительным\nобщеразвивающим\nпрограммам\n(спортивно-\nоздоровительный\nэтап)","в возрасте\nот 6 до 17 лет\n(из гр. 12)","Всего\nзанимающихся","в возрасте\nот 6 до 17 лет\n(из гр. 14)","Итого","спортивные разряды",null,null,null,"спортивные звания"]
[null,null,null,null,null,null,"в том числе по этапам подготовки (из гр. 6)",null,null,null,null,null,null,null,null,null,"Всего","в том числе:",null,null,"Всего","в том числе:"]
[null,null,null,null,null,null,"начальной\nподготовки","учебно-\nтренировочный\n(этап спортивной специализации)","совершенствова-\nния спортивного\nмастерства","высшего\nспортивного\nмастерства",null,null,null,null,null,null,null,"КМС","1 разряд","другие\nразряды",null,"ЗМС","МСМК","МС","гроссмейстер"]
[1,2,3,4,5,6,7,8,9,10,11,12,13,14,15,16,17,18,19,20,21,22,23,24,25]
["Всего (сумма строк 09, 41, 63, 95, 119, 121)",1,{"$f":"SUM(C16,C48,C70,C102,C126,C128)","v":0},null,{"$f":"SUM(E16,E48,E70,E102,E126,E128)","v":0},0,0,0,0,0,0,0,0,0,0,0,0,0,0,0,0,0,0,0,0]
["  в том числе по виду организации:\n  спортивно-адаптивные школы",2,null,null,{"$f":"SUM(F9,L9,N9)","v":0},{"$f":"SUM(G9:J9)","v":0},null,null,null,null,null,null,null,null,null,{"$f":"SUM(Q9,U9)","v":0}]
["  спортивно-адаптивные школы\n  паралимпийского и (или) сурдлимпийского\n  резерва",3,null,null,0,0,null,null,null,null,null,null,null,null,null,0]
["  центры подготовки спортивного резерва\n  по адаптивным видам спорта",4,null,null,0,0,null,null,null,null,null,null,null,null,null,0]
["  СШ, СШОР, УОР",5,null,null,0,0,null,null,null,null,null,null,null,null,null,0]
["  физкультурно-спортивные клубы\n  инвалидов",6,null,null,0,0,null,null,null,null,null,null,null,null,null,0]
["  учреждения и организации\n  при спортивных сооружениях",7,null,null,0,0,null,null,null,null,null,null,null,null,null,0]
["  другие организации",8,null,null,0,0,null,null,null,null,null,null,null,null,null,0]
["Всего по виду спорта \"Спорт глухих\"",9,null,null,{"$f":"SUM(E17:E47)","v":0},0,0,0,0,0,0,0,0,0,0,0,0,0,0,0,0,0,0,0,{"$f":"SUM(Y17:Y47)","v":0}]
["  в том числе по дисциплинам:\n  армрестлинг",10,null,null,0,0,null,null,null,null,null,null,null,null,null,0]
["  бадминтон",11,null,null,0,0,null,null,null,null,null,null,null,null,null,0]
["  баскетбол",12,null,null,0,0,null,null,null,null,null,null,null,null,null,0]
["  боулинг",13,null,null,0,0,null,null,null,null,null,null,null,null,null,0]
["  велосипедный спорт - маунтинбайк",14,null,null,0,0,null,null,null,null,null,null,null,null,null,0]
["  велосипедный спорт - шоссе",15,null,null,0,0,null,null,null,null,null,null,null,null,null,0]
["  волейбол",16,null,null,0,0,null,null,null,null,null,null,null,null,null,0]
["  волейбол - пляжный",17,null,null,0,0,null,null,null,null,null,null,null,null,null,0]
["  вольная борьба",18,null,null,0,0,null,null,null,null,null,null,null,null,null,0]
["  гандбол",19,null,null,0,0,null,null,null,null,null,null,null,null,null,0]
["  гольф",20,null,null,0,0,null,null,null,null,null,null,null,null,null,0]
["  горнолыжный спорт",21,null,null,0,0,null,null,null,null,null,null,null,null,null,0]
["  греко-римская борьба",22,null,null,0,0,null,null,null,null,null,null,null,null,null,0]
["  дзюдо",23,null,null,0,0,null,null,null,null,null,null,null,null,null,0]
["  каратэ",24,null,null,0,0,null,null,null,null,null,null,null,null,null,0]
["  кёрлинг",25,null,null,0,0,null,null,null,null,null,null,null,null,null,0]
["  легкая атлетика",26,null,null,0,0,null,null,null,null,null,null,null,null,null,0]
["  лыжные гонки",27,null,null,0,0,null,null,null,null,null,null,null,null,null,0]
["  настольный теннис",28,null,null,0,0,null,null,null,null,null,null,null,null,null,0]
["  плавание",29,null,null,0,0,null,null,null,null,null,null,null,null,null,0]
["  пулевая стрельба",30,null,null,0,0,null,null,null,null,null,null,null,null,null,0]
["  самбо",31,null,null,0,0,null,null,null,null,null,null,null,null,null,0]
["  сноуборд",32,null,null,0,0,null,null,null,null,null,null,null,null,null,0]
["  спортивное ориентирование",33,null,null,0,0,null,null,null,null,null,null,null,null,null,0]
["  теннис",34,null,null,0,0,null,null,null,null,null,null,null,null,null,0]
["  тхэквондо",35,null,null,0,0,null,null,null,null,null,null,null,null,null,0]
["  футбол",36,null,null,0,0,null,null,null,null,null,null,null,null,null,0]
["  футзал",37,null,null,0,0,null,null,null,null,null,null,null,null,null,0]
["  хоккей",38,null,null,0,0,null,null,null,null,null,null,null,null,null,0]
["  шахматы",39,null,null,0,0,null,null,null,null,null,null,null,null,null,0]
["  шашки",40,null,null,0,0,null,null,null,null,null,null,null,null,null,0]
["Всего по виду спорта \"Спорт лиц\nс интеллектуальными нарушениями\"",41,null,null,{"$f":"SUM(E49:E69)","v":0},0,0,0,0,0,0,0,0,0,0,0,0,0,0,0,0,0,0,0,0]
["  в том числе по дисциплинам:\n  академическая гребля ",42,null,null,0,0,null,null,null,null,null,null,null,null,null,0]
["  академическая гребля - индор",43,null,null,0,0,null,null,null,null,null,null,null,null,null,0]
["  бадминтон",44,null,null,0,0,null,null,null,null,null,null,null,null,null,0]
["  баскетбол",45,null,null,0,0,null,null,null,null,null,null,null,null,null,0]
["  баскетбол 3х3",46,null,null,0,0,null,null,null,null,null,null,null,null,null,0]
["  велоспорт-трек",47,null,null,0,0,null,null,null,null,null,null,null,null,null,0]
["  велоспорт-шоссе",48,null,null,0,0,null,null,null,null,null,null,null,null,null,0]
["  гандбол",49,null,null,0,0,null,null,null,null,null,null,null,null,null,0]
["  горнолыжный спорт",50,null,null,0,0,null,null,null,null,null,null,null,null,null,0]
["  дзюдо",51,null,null,0,0,null,null,null,null,null,null,null,null,null,0]
["  конный спорт",52,null,null,0,0,null,null,null,null,null,null,null,null,null,0]
["  легкая атлетика",53,null,null,0,0,null,null,null,null,null,null,null,null,null,0]
["  лыжные гонки",54,null,null,0,0,null,null,null,null,null,null,null,null,null,0]
["  мини-футбол (футзал)",55,null,null,0,0,null,null,null,null,null,null,null,null,null,0]
["  настольный теннис",56,null,null,0,0,null,null,null,null,null,null,null,null,null,0]
["  пауэрлифтинг (троеборье)",57,null,null,0,0,null,null,null,null,null,null,null,null,null,0]
["  плавание",58,null,null,0,0,null,null,null,null,null,null,null,null,null,0]
["  спортивная гимнастика",59,null,null,0,0,null,null,null,null,null,null,null,null,null,0]
["  теннис",60,null,null,0,0,null,null,null,null,null,null,null,null,null,0]
["  тхэквондо (пхумсэ)",61,null,null,0,0,null,null,null,null,null,null,null,null,null,0]
["  футбол",62,null,null,0,0,null,null,null,null,null,null,null,null,null,0]
["Всего по виду спорта\n\"Спорт лиц с поражением ОДА\"",63,null,null,{"$f":"SUM(E71:E101)","v":0},0,0,0,0,0,0,0,0,0,0,0,0,0,0,0,0,0,0,0,0]
["  в том числе по дисциплинам:\n  академическая гребля ",64,null,null,0,0,null,null,null,null,null,null,null,null,null,0]
["  бадминтон",65,null,null,0,0,null,null,null,null,null,null,null,null,null,0]
["  баскетбол на колясках",66,null,null,{"$f":"SUM(F73,L73,N73)","v":0},{"$f":"SUM(G73:J73)","v":0},null,null,null,null,null,null,null,null,null,{"$f":"SUM(Q73,U73)","v":0}]
["  биатлон",67,null,null,0,0,null,null,null,null,null,null,null,null,null,0]
["  бочча",68,null,null,0,0,null,null,null,null,null,null,null,null,null,0]
["  велоспорт - трек",69,null,null,0,0,null,null,null,null,null,null,null,null,null,0]
["  велоспорт - шоссе",70,null,null,0,0,null,null,null,null,null,null,null,null,null,0]
["  волейбол сидя",71,null,null,0,0,null,null,null,null,null,null,null,null,null,0]
["  горнолыжный спорт",72,null,null,0,0,null,null,null,null,null,null,null,null,null,0]
["  гребля на байдарках и каноэ",73,null,null,0,0,null,null,null,null,null,null,null,null,null,0]
["  дартс",74,null,null,0,0,null,null,null,null,null,null,null,null,null,0]
["  конный спорт",75,null,null,0,0,null,null,null,null,null,null,null,null,null,0]
["  легкая атлетика",76,null,null,0,0,null,null,null,null,null,null,null,null,null,0]
["  лыжные гонки",77,null,null,0,0,null,null,null,null,null,null,null,null,null,0]
["  настольный теннис",78,null,null,0,0,null,null,null,null,null,null,null,null,null,0]
["  парусный спорт",79,null,null,0,0,null,null,null,null,null,null,null,null,null,0]
["  пауэрлифтинг",80,null,null,0,0,null,null,null,null,null,null,null,null,null,0]
["  плавание",81,null,null,0,0,null,null,null,null,null,null,null,null,null,0]
["  пулевая стрельба",82,null,null,0,0,null,null,null,null,null,null,null,null,null,0]
["  регби на колясках",83,null,null,0,0,null,null,null,null,null,null,null,null,null,0]
["  сноуборд",84,null,null,0,0,null,null,null,null,null,null,null,null,null,0]
["  спортивное ориентирование",85,null,null,0,0,null,null,null,null,null,null,null,null,null,0]
["  стендовая стрельба",86,null,null,0,0,null,null,null,null,null,null,null,null,null,0]
["  стрельба из лука",87,null,null,0,0,null,null,null,null,null,null,null,null,null,0]
["  танцы на колясках",88,null,null,0,0,null,null,null,null,null,null,null,null,null,0]
["  теннис на колясках",89,null,null,0,0,null,null,null,null,null,null,null,null,null,0]
["  фехтование",90,null,null,0,0,null,null,null,null,null,null,null,null,null,0]
["  футбол ампутантов",91,null,null,0,0,null,null,null,null,null,null,null,null,null,0]
["  хоккей - следж",92,null,null,0,0,null,null,null,null,null,null,null,null,null,0]
["  шахматы",93,null,null,0,0,null,null,null,null,null,null,null,null,null,0]
["  шашки",94,null,null,0,0,null,null,null,null,null,null,null,null,null,0]
["Всего по виду спорта \"Спорт слепых\"",95,null,null,{"$f":"SUM(E103:E125)","v":0},0,0,0,0,0,0,0,0,0,0,0,0,0,0,0,0,0,0,0,{"$f":"SUM(Y103:Y125)","v":0}]
["  в том числе по дисциплинам:\n  армрестлинг",96,null,null,0,0,null,null,null,null,null,null,null,null,null,0]
["  биатлон",97,null,null,0,0,null,null,null,null,null,null,null,null,null,0]
["  борьба",98,null,null,0,0,null,null,null,null,null,null,null,null,null,0]
["  боулинг",99,null,null,0,0,null,null,null,null,null,null,null,null,null,0]
["  велоспорт-тандем - трек",100,null,null,0,0,null,null,null,null,null,null,null,null,null,0]
["  велоспорт-тандем - шоссе",101,null,null,0,0,null,null,null,null,null,null,null,null,null,0]
["  голбол",102,null,null,0,0,null,null,null,null,null,null,null,null,null,0]
["  горнолыжный спорт",103,null,null,0,0,null,null,null,null,null,null,null,null,null,0]
["  дзюдо",104,null,null,0,0,null,null,null,null,null,null,null,null,null,0]
["  легкая атлетика",105,null,null,0,0,null,null,null,null,null,null,null,null,null,0]
["  лыжные гонки",106,null,null,0,0,null,null,null,null,null,null,null,null,null,0]
["  настольный теннис",107,null,null,0,0,null,null,null,null,null,null,null,null,null,0]
["  пауэрлифтинг",108,null,null,0,0,null,null,null,null,null,null,null,null,null,0]
["  плавание",109,null,null,0,0,null,null,null,null,null,null,null,null,null,0]
["  пулевая стрельба",110,null,null,0,0,null,null,null,null,null,null,null,null,null,0]
["  самбо",111,null,null,0,0,null,null,null,null,null,null,null,null,null,0]
["  спортивный туризм - многоборье",112,null,null,0,0,null,null,null,null,null,null,null,null,null,0]
["  торбол",113,null,null,0,0,null,null,null,null,null,null,null,null,null,0]
["  триатлон",114,null,null,0,0,null,null,null,null,null,null,null,null,null,0]
["  футбол - мини-футбол 5х5 (B1)",115,null,null,0,0,null,null,null,null,null,null,null,null,null,0]
["  футбол - футзал 5х5 (B2, B3)",116,null,null,0,0,null,null,null,null,null,null,null,null,null,0]
["  шахматы",117,null,null,0,0,null,null,null,null,null,null,null,null,null,0]
["  шашки",118,null,null,0,0,null,null,null,null,null,null,null,null,null,0]
["Всего по виду спорта\n\"Футбол лиц с заболеванием ЦП\"",119,null,null,{"$f":"SUM(E127)","v":0},0,0,0,0,0,0,0,0,0,0,0,0,0,0,0,0,0,0,0,0]
["  в том числе по дисциплине:\n  футбол лиц с заболеванием ЦП",120,null,null,0,0,null,null,null,null,null,null,null,null,null,0]
["Всего по другим видам спорта, спортивным\nдисциплинам",121,null,null,{"$f":"SUM(E129:E136)","v":0},0,0,0,0,0,0,0,0,0,0,0,0,0,0,0,0,0,0,0,0]
["  в том числе:\n  армрестлинг (ПОДА)",122,null,null,0,0,null,null,null,null,null,null,null,null,null,0]
["  водно-моторный спорт (ПОДА - мотолодка)",123,null,null,0,0,null,null,null,null,null,null,null,null,null,0]
["  каратэ (ПОДА - ката)",124,null,null,0,0,null,null,null,null,null,null,null,null,null,0]
["  кёрлинг (ПОДА - кёрлинг на колясках)",125,null,null,0,0,null,null,null,null,null,null,null,null,null,0]
["  скалолазание (ПОДА - лазание на трудность)",126,null,null,{"$f":"SUM(F133,L133,N133)","v":0},0,null,null,null,null,null,null,null,null,null,0]
["  триатлон (ПОДА - триатлон)",127,null,null,0,0,null,null,null,null,null,null,null,null,null,0]
["  тхэквондо (ВТФ - ПОДА)",128,null,null,0,0,null,null,null,null,null,null,null,null,null,0]
["  футбол (ПОДА - футбол на электроколясках)",129,null,null,0,{"$f":"SUM(G136:J136)","v":0},null,null,null,null,null,null,null,null,null,{"$f":"SUM(Q136,U136)","v":0}]
["Всего по базовым видам спорта (из строки 01)",130]
["Всего по видам спорта и (или) спортивным\nдисциплинам (из строки 01)",131,{"$f":"SUM(C139:C140)","v":0},null,{"$f":"SUM(F138,L138,N138)","v":0},{"$f":"SUM(F139:F140)","v":0},0,0,0,0,0,0,0,0,0,0,0,0,0,0,0,0,0,0,0]
["  в том числе включенным:\n  в Паралимпийскую программу",132,{"$f":"SUM(C60,C63,C65,C71:C80,C82:C85,C87:C91,C94,C96:C97,C99,C104,C107:C113,C116,C121:C122,C132,C134,C135)","v":0},null,0,{"$f":"SUM(G139:J139)","v":0},{"$f":"SUM(G60,G63,G65,G71:G80,G82:G85,G87:G91,G94,G96:G97,G99,G104,G107:G113,G116,G121:G122,G132,G134,G135)","v":0},0,0,0,0,0,0,0,0,{"$f":"SUM(Q139,U139)","v":0},0,0,0,0,0,0,0,0,0]
["  в Сурдлимпийскую программу",133,{"$f":"SUM(C18:C37,C39:C46)","v":0},null,0,{"$f":"SUM(G140:J140)","v":0},{"$f":"SUM(G18:G37,G39:G46)","v":0},0,0,0,0,0,0,0,0,{"$f":"SUM(Q140,U140)","v":0},0,0,0,0,0,0,0,0,0]
["Ведомственная принадлежность\nорганизаций",134,{"$f":"SUM(C142:C144)","v":0},null,{"$f":"SUM(E142:E144)","v":0},0,0,0,0,0,0,0,0,0,0,0,0,0,0,0,0,0,0,0,0]
["  в том числе:\n  в сфере физической культуры и спорта",135,null,null,{"$f":"SUM(F142,L142,N142)","v":0},{"$f":"SUM(G142:J142)","v":0},null,null,null,null,null,null,null,null,null,{"$f":"SUM(Q142,U142)","v":0}]
["  в сфере образования",136,null,null,0,0,null,null,null,null,null,null,null,null,null,0]
["  в сфере труда и социальной защиты",137,null,null,0,0,null,null,null,null,null,null,null,null,null,0]

{"sheet":"Раздел V","index":5,"n_rows":143,"n_cols":14,"rows_kept":143,"cut":false,"hidden":false,"merged":[[0,0,0,11],[3,6,4,6],[3,7,3,8],[2,6,2,8],[3,9,4,9],[3,10,3,11],[2,9,2,11],[3,3,4,3],[3,4,3,5],[2,2,4,2],[2,3,2,5],[1,1,4,1],[1,0,4,0],[1,2,1,11]]}
["Раздел V. Сведения о кандидатах в спортивные сборные команды Российской Федерации, человек"]
["Наименование вида спорта,\nспортивной дисциплины","№\nстроки","Из общей численности обучающихся и занимающихся (из гр. 5 раздела IV) - кандидаты, состоящие в списках спортивных сборных команд Российской Федерации"]
[null,null,"Всего\nкандидатов","Юношеский состав",null,null,"Юниорский состав",null,null,"Основной состав"]
[null,null,null,"Всего по юношескому\nсоставу","в том числе:",null,"Всего по юниорскому\nсоставу","в том числе:",null,"Всего по основному\nсоставу","в том числе:"]
[null,null,null,null,"основной","резервный",null,"основной","резервный",null,"основной","резервный"]
[1,2,3,4,5,6,7,8,9,10,11,12,null,"Раздел 4"]
["Всего (сумма строк 09, 41, 63, 95, 119, 121)",1,{"$f":"SUM(C15,C47,C69,C101,C125,C127)","v":0},{"$f":"SUM(D15,D47,D69,D101,D125,D127)","v":0},0,0,0,0,0,0,0,0,null,{"$f":"'Раздел IV'!E8","v":0}]
["  в том числе по виду организации:\n  спортивно-адаптивные школы",2,{"$f":"SUM(D8,G8,J8)","v":0},null,null,null,null,null,null,null,null,null,null,{"$f":"'Раздел IV'!E9","v":0}]
["  спортивно-адаптивные школы\n  паралимпийского и (или) сурдлимпийского\n  резерва",3,{"$f":"SUM(D9,G9,J9)","v":0},null,null,null,null,null,null,null,null,null,null,{"$f":"'Раздел IV'!E10","v":0}]
["  центры подготовки спортивного резерва\n  по адаптивным видам спорта",4,0,null,null,null,null,null,null,null,null,null,null,{"$f":"'Раздел IV'!E11","v":0}]
["  СШ, СШОР, УОР",5,0,null,null,null,null,null,null,null,null,null,null,{"$f":"'Раздел IV'!E12","v":0}]
["  физкультурно-спортивные клубы\n  инвалидов",6,0,null,null,null,null,null,null,null,null,null,null,{"$f":"'Раздел IV'!E13","v":0}]
["  учреждения и организации\n  при спортивных сооружениях",7,0,null,null,null,null,null,null,null,null,null,null,{"$f":"'Раздел IV'!E14","v":0}]
["  другие организации",8,0,null,null,null,null,null,null,null,null,null,null,{"$f":"'Раздел IV'!E15","v":0}]
["Всего по виду спорта \"Спорт глухих\"",9,0,{"$f":"SUM(D16:D46)","v":0},{"$f":"SUM(E16:E46)","v":0},0,0,0,0,0,0,0,null,{"$f":"'Раздел IV'!E16","v":0}]
["  в том числе по дисциплинам:\n  армрестлинг",10,0,null,null,null,null,null,null,null,null,null,null,{"$f":"'Раздел IV'!E17","v":0}]
["  бадминтон",11,0,null,null,null,null,null,null,null,null,null,null,{"$f":"'Раздел IV'!E18","v":0}]
["  баскетбол",12,0,null,null,null,null,null,null,null,null,null,null,{"$f":"'Раздел IV'!E19","v":0}]
["  боулинг",13,0,null,null,null,null,null,null,null,null,null,null,{"$f":"'Раздел IV'!E20","v":0}]
["  велосипедный спорт - маунтинбайк",14,0,null,null,null,null,null,null,null,null,null,null,{"$f":"'Раздел IV'!E21","v":0}]
["  велосипедный спорт - шоссе",15,0,null,null,null,null,null,null,null,null,null,null,{"$f":"'Раздел IV'!E22","v":0}]
["  волейбол",16,0,null,null,null,null,null,null,null,null,null,null,{"$f":"'Раздел IV'!E23","v":0}]
["  волейбол - пляжный",17,0,null,null,null,null,null,null,null,null,null,null,{"$f":"'Раздел IV'!E24","v":0}]
["  вольная борьба",18,0,null,null,null,null,null,null,null,null,null,null,{"$f":"'Раздел IV'!E25","v":0}]
["  гандбол",19,0,null,null,null,null,null,null,null,null,null,null,{"$f":"'Раздел IV'!E26","v":0}]
["  гольф",20,0,null,null,null,null,null,null,null,null,null,null,{"$f":"'Раздел IV'!E27","v":0}]
["  горнолыжный спорт",21,0,null,null,null,null,null,null,null,null,null,null,{"$f":"'Раздел IV'!E28","v":0}]
["  греко-римская борьба",22,0,null,null,null,null,null,null,null,null,null,null,{"$f":"'Раздел IV'!E29","v":0}]
["  дзюдо",23,0,null,null,null,null,null,null,null,null,null,null,{"$f":"'Раздел IV'!E30","v":0}]
["  каратэ",24,0,null,null,null,null,null,null,null,null,null,null,{"$f":"'Раздел IV'!E31","v":0}]
["  кёрлинг",25,0,null,null,null,null,null,null,null,null,null,null,{"$f":"'Раздел IV'!E32","v":0}]
["  легкая атлетика",26,0,null,null,null,null,null,null,null,null,null,null,{"$f":"'Раздел IV'!E33","v":0}]
["  лыжные гонки",27,0,null,null,null,null,null,null,null,null,null,null,{"$f":"'Раздел IV'!E34","v":0}]
["  настольный теннис",28,0,null,null,null,null,null,null,null,null,null,null,{"$f":"'Раздел IV'!E35","v":0}]
["  плавание",29,0,null,null,null,null,null,null,null,null,null,null,{"$f":"'Раздел IV'!E36","v":0}]
["  пулевая стрельба",30,0,null,null,null,null,null,null,null,null,null,null,{"$f":"'Раздел IV'!E37","v":0}]
["  самбо",31,0,null,null,null,null,null,null,null,null,null,null,{"$f":"'Раздел IV'!E38","v":0}]
["  сноуборд",32,0,null,null,null,null,null,null,null,null,null,null,{"$f":"'Раздел IV'!E39","v":0}]
["  спортивное ориентирование",33,0,null,null,null,null,null,null,null,null,null,null,{"$f":"'Раздел IV'!E40","v":0}]
["  теннис",34,0,null,null,null,null,null,null,null,null,null,null,{"$f":"'Раздел IV'!E41","v":0}]
["  тхэквондо",35,0,null,null,null,null,null,null,null,null,null,null,{"$f":"'Раздел IV'!E42","v":0}]
["  футбол",36,0,null,null,null,null,null,null,null,null,null,null,{"$f":"'Раздел IV'!E43","v":0}]
["  футзал",37,0,null,null,null,null,null,null,null,null,null,null,{"$f":"'Раздел IV'!E44","v":0}]
["  хоккей",38,0,null,null,null,null,null,null,null,null,null,null,{"$f":"'Раздел IV'!E45","v":0}]
["  шахматы",39,0,null,null,null,null,null,null,null,null,null,null,{"$f":"'Раздел IV'!E46","v":0}]
["  шашки",40,0,null,null,null,null,null,null,null,null,null,null,{"$f":"'Раздел IV'!E47","v":0}]
["Всего по виду спорта \"Спорт лиц\nс интеллектуальными нарушениями\"",41,0,{"$f":"SUM(D48:D68)","v":0},{"$f":"SUM(E48:E68)","v":0},0,0,0,0,0,0,0,null,{"$f":"'Раздел IV'!E48","v":0}]
["  в том числе по дисциплинам:\n  академическая гребля ",42,0,null,null,null,null,null,null,null,null,null,null,{"$f":"'Раздел IV'!E49","v":0}]
["  академическая гребля - индор",43,0,null,null,null,null,null,null,null,null,null,null,{"$f":"'Раздел IV'!E50","v":0}]
["  бадминтон",44,0,null,null,null,null,null,null,null,null,null,null,{"$f":"'Раздел IV'!E51","v":0}]
["  баскетбол",45,0,null,null,null,null,null,null,null,null,null,null,{"$f":"'Раздел IV'!E52","v":0}]
["  баскетбол 3х3",46,0,null,null,null,null,null,null,null,null,null,null,{"$f":"'Раздел IV'!E53","v":0}]
["  велоспорт-трек",47,0,null,null,null,null,null,null,null,null,null,null,{"$f":"'Раздел IV'!E54","v":0}]
["  велоспорт-шоссе",48,0,null,null,null,null,null,null,null,null,null,null,{"$f":"'Раздел IV'!E55","v":0}]
["  гандбол",49,0,null,null,null,null,null,null,null,null,null,null,{"$f":"'Раздел IV'!E56","v":0}]
["  горнолыжный спорт",50,0,null,null,null,null,null,null,null,null,null,null,{"$f":"'Раздел IV'!E57","v":0}]
["  дзюдо",51,0,null,null,null,null,null,null,null,null,null,null,{"$f":"'Раздел IV'!E58","v":0}]
["  конный спорт",52,0,null,null,null,null,null,null,null,null,null,null,{"$f":"'Раздел IV'!E59","v":0}]
["  легкая атлетика",53,0,null,null,null,null,null,null,null,null,null,null,{"$f":"'Раздел IV'!E60","v":0}]
["  лыжные гонки",54,0,null,null,null,null,null,null,null,null,null,null,{"$f":"'Раздел IV'!E61","v":0}]
["  мини-футбол (футзал)",55,0,null,null,null,null,null,null,null,null,null,null,{"$f":"'Раздел IV'!E62","v":0}]
["  настольный теннис",56,0,null,null,null,null,null,null,null,null,null,null,{"$f":"'Раздел IV'!E63","v":0}]
["  пауэрлифтинг (троеборье)",57,0,null,null,null,null,null,null,null,null,null,null,{"$f":"'Раздел IV'!E64","v":0}]
["  плавание",58,0,null,null,null,null,null,null,null,null,null,null,{"$f":"'Раздел IV'!E65","v":0}]
["  спортивная гимнастика",59,0,null,null,null,null,null,null,null,null,null,null,{"$f":"'Раздел IV'!E66","v":0}]
["  теннис",60,0,null,null,null,null,null,null,null,null,null,null,{"$f":"'Раздел IV'!E67","v":0}]
["  тхэквондо (пхумсэ)",61,0,null,null,null,null,null,null,null,null,null,null,{"$f":"'Раздел IV'!E68","v":0}]
["  футбол",62,0,null,null,null,null,null,null,null,null,null,null,{"$f":"'Раздел IV'!E69","v":0}]
["Всего по виду спорта\n\"Спорт лиц с поражением ОДА\"",63,0,{"$f":"SUM(D70:D100)","v":0},{"$f":"SUM(E70:E100)","v":0},0,0,0,0,0,0,0,null,{"$f":"'Раздел IV'!E70","v":0}]
["  в том числе по дисциплинам:\n  академическая гребля ",64,0,null,null,null,null,null,null,null,null,null,null,{"$f":"'Раздел IV'!E71","v":0}]
["  бадминтон",65,0,null,null,null,null,null,null,null,null,null,null,{"$f":"'Раздел IV'!E72","v":0}]
["  баскетбол на колясках",66,0,null,null,null,null,null,null,null,null,null,null,{"$f":"'Раздел IV'!E73","v":0}]
["  биатлон",67,{"$f":"SUM(D73,G73,J73)","v":0},null,null,null,null,null,null,null,null,null,null,{"$f":"'Раздел IV'!E74","v":0}]
["  бочча",68,0,null,null,null,null,null,null,null,null,null,null,{"$f":"'Раздел IV'!E75","v":0}]
["  велоспорт - трек",69,0,null,null,null,null,null,null,null,null,null,null,{"$f":"'Раздел IV'!E76","v":0}]
["  велоспорт - шоссе",70,0,null,null,null,null,null,null,null,null,null,null,{"$f":"'Раздел IV'!E77","v":0}]
["  волейбол сидя",71,0,null,null,null,null,null,null,null,null,null,null,{"$f":"'Раздел IV'!E78","v":0}]
["  горнолыжный спорт",72,0,null,null,null,null,null,null,null,null,null,null,{"$f":"'Раздел IV'!E79","v":0}]
["  гребля на байдарках и каноэ",73,0,null,null,null,null,null,null,null,null,null,null,{"$f":"'Раздел IV'!E80","v":0}]
["  дартс",74,0,null,null,null,null,null,null,null,null,null,null,{"$f":"'Раздел IV'!E81","v":0}]
["  конный спорт",75,0,null,null,null,null,null,null,null,null,null,null,{"$f":"'Раздел IV'!E82","v":0}]
["  легкая атлетика",76,0,null,null,null,null,null,null,null,null,null,null,{"$f":"'Раздел IV'!E83","v":0}]
["  лыжные гонки",77,0,null,null,null,null,null,null,null,null,null,null,{"$f":"'Раздел IV'!E84","v":0}]
["  настольный теннис",78,0,null,null,null,null,null,null,null,null,null,null,{"$f":"'Раздел IV'!E85","v":0}]
["  парусный спорт",79,0,null,null,null,null,null,null,null,null,null,null,{"$f":"'Раздел IV'!E86","v":0}]
["  пауэрлифтинг",80,0,null,null,null,null,null,null,null,null,null,null,{"$f":"'Раздел IV'!E87","v":0}]
["  плавание",81,0,null,null,null,null,null,null,null,null,null,null,{"$f":"'Раздел IV'!E88","v":0}]
["  пулевая стрельба",82,0,null,null,null,null,null,null,null,null,null,null,{"$f":"'Раздел IV'!E89","v":0}]
["  регби на колясках",83,0,null,null,null,null,null,null,null,null,null,null,{"$f":"'Раздел IV'!E90","v":0}]
["  сноуборд",84,0,null,null,null,null,null,null,null,null,null,null,{"$f":"'Раздел IV'!E91","v":0}]
["  спортивное ориентирование",85,0,null,null,null,null,null,null,null,null,null,null,{"$f":"'Раздел IV'!E92","v":0}]
["  стендовая стрельба",86,0,null,null,null,null,null,null,null,null,null,null,{"$f":"'Раздел IV'!E93","v":0}]
["  стрельба из лука",87,0,null,null,null,null,null,null,null,null,null,null,{"$f":"'Раздел IV'!E94","v":0}]
["  танцы на колясках",88,0,null,null,null,null,null,null,null,null,null,null,{"$f":"'Раздел IV'!E95","v":0}]
["  теннис на колясках",89,0,null,null,null,null,null,null,null,null,null,null,{"$f":"'Раздел IV'!E96","v":0}]
["  фехтование",90,0,null,null,null,null,null,null,null,null,null,null,{"$f":"'Раздел IV'!E97","v":0}]
["  футбол ампутантов",91,0,null,null,null,null,null,null,null,null,null,null,{"$f":"'Раздел IV'!E98","v":0}]
["  хоккей - следж",92,0,null,null,null,null,null,null,null,null,null,null,{"$f":"'Раздел IV'!E99","v":0}]
["  шахматы",93,0,null,null,null,null,null,null,null,null,null,null,{"$f":"'Раздел IV'!E100","v":0}]
["  шашки",94,0,null,null,null,null,null,null,null,null,null,null,{"$f":"'Раздел IV'!E101","v":0}]
["Всего по виду спорта \"Спорт слепых\"",95,0,{"$f":"SUM(D102:D124)","v":0},{"$f":"SUM(E102:E124)","v":0},0,0,0,0,0,0,0,null,{"$f":"'Раздел IV'!E102","v":0}]
["  в том числе по дисциплинам:\n  армрестлинг",96,0,null,null,null,null,null,null,null,null,null,null,{"$f":"'Раздел IV'!E103","v":0}]
["  биатлон",97,0,null,null,null,null,null,null,null,null,null,null,{"$f":"'Раздел IV'!E104","v":0}]
["  борьба",98,0,null,null,null,null,null,null,null,null,null,null,{"$f":"'Раздел IV'!E105","v":0}]
["  боулинг",99,0,null,null,null,null,null,null,null,null,null,null,{"$f":"'Раздел IV'!E106","v":0}]
["  велоспорт-тандем - трек",100,0,null,null,null,null,null,null,null,null,null,null,{"$f":"'Раздел IV'!E107","v":0}]
["  велоспорт-тандем - шоссе",101,0,null,null,null,null,null,null,null,null,null,null,{"$f":"'Раздел IV'!E108","v":0}]
["  голбол",102,0,null,null,null,null,null,null,null,null,null,null,{"$f":"'Раздел IV'!E109","v":0}]
["  горнолыжный спорт",103,0,null,null,null,null,null,null,null,null,null,null,{"$f":"'Раздел IV'!E110","v":0}]
["  дзюдо",104,0,null,null,null,null,null,null,null,null,null,null,{"$f":"'Раздел IV'!E111","v":0}]
["  легкая атлетика",105,0,null,null,null,null,null,null,null,null,null,null,{"$f":"'Раздел IV'!E112","v":0}]
["  лыжные гонки",106,0,null,null,null,null,null,null,null,null,null,null,{"$f":"'Раздел IV'!E113","v":0}]
["  настольный теннис",107,0,null,null,null,null,null,null,null,null,null,null,{"$f":"'Раздел IV'!E114","v":0}]
["  пауэрлифтинг",108,0,null,null,null,null,null,null,null,null,null,null,{"$f":"'Раздел IV'!E115","v":0}]
["  плавание",109,0,null,null,null,null,null,null,null,null,null,null,{"$f":"'Раздел IV'!E116","v":0}]
["  пулевая стрельба",110,0,null,null,null,null,null,null,null,null,null,null,{"$f":"'Раздел IV'!E117","v":0}]
["  самбо",111,0,null,null,null,null,null,null,null,null,null,null,{"$f":"'Раздел IV'!E118","v":0}]
["  спортивный туризм - многоборье",112,0,null,null,null,null,null,null,null,null,null,null,{"$f":"'Раздел IV'!E119","v":0}]
["  торбол",113,0,null,null,null,null,null,null,null,null,null,null,{"$f":"'Раздел IV'!E120","v":0}]
["  триатлон",114,0,null,null,null,null,null,null,null,null,null,null,{"$f":"'Раздел IV'!E121","v":0}]
["  футбол - мини-футбол 5х5 (B1)",115,0,null,null,null,null,null,null,null,null,null,null,{"$f":"'Раздел IV'!E122","v":0}]
["  футбол - футзал 5х5 (B2, B3)",116,0,null,null,null,null,null,null,null,null,null,null,{"$f":"'Раздел IV'!E123","v":0}]
["  шахматы",117,0,null,null,null,null,null,null,null,null,null,null,{"$f":"'Раздел IV'!E124","v":0}]
["  шашки",118,0,null,null,null,null,null,null,null,null,null,null,{"$f":"'Раздел IV'!E125","v":0}]
["Всего по виду спорта\n\"Футбол лиц с заболеванием ЦП\"",119,0,{"$f":"SUM(D126)","v":0},{"$f":"SUM(E126)","v":0},0,0,0,0,0,0,0,null,{"$f":"'Раздел IV'!E126","v":0}]
["  в том числе по дисциплине:\n  футбол лиц с заболеванием ЦП",120,0,null,null,null,null,null,null,null,null,null,null,{"$f":"'Раздел IV'!E127","v":0}]
["Всего по другим видам спорта, спортивным\nдисциплинам",121,0,{"$f":"SUM(D128:D135)","v":0},{"$f":"SUM(E128:E135)","v":0},0,0,0,0,0,0,0,null,{"$f":"'Раздел IV'!E128","v":0}]
["  в том числе:\n  армрестлинг (ПОДА)",122,0,null,null,null,null,null,null,null,null,null,null,{"$f":"'Раздел IV'!E129","v":0}]
["  водно-моторный спорт (ПОДА - мотолодка)",123,0,null,null,null,null,null,null,null,null,null,null,{"$f":"'Раздел IV'!E130","v":0}]
["  каратэ (ПОДА - ката)",124,0,null,null,null,null,null,null,null,null,null,null,{"$f":"'Раздел IV'!E131","v":0}]
["  кёрлинг (ПОДА - кёрлинг на колясках)",125,0,null,null,null,null,null,null,null,null,null,null,{"$f":"'Раздел IV'!E132","v":0}]
["  скалолазание (ПОДА - лазание на трудность)",126,0,null,null,null,null,null,null,null,null,null,null,{"$f":"'Раздел IV'!E133","v":0}]
["  триатлон (ПОДА - триатлон)",127,0,null,null,null,null,null,null,null,null,null,null,{"$f":"'Раздел IV'!E134","v":0}]
["  тхэквондо (ВТФ - ПОДА)",128,0,null,null,null,null,null,null,null,null,null,null,{"$f":"'Раздел IV'!E135","v":0}]
["  футбол (ПОДА - футбол на электроколясках)",129,0,null,null,null,null,null,null,null,null,null,null,{"$f":"'Раздел IV'!E136","v":0}]
["Всего по базовым видам спорта (из строки 01)",130,null,null,null,null,null,null,null,null,null,null,null,{"$f":"'Раздел IV'!E137","v":0}]
["Всего по видам спорта и (или) спортивным\nдисциплинам (из строки 01)",131,{"$f":"SUM(D137,G137,J137)","v":0},{"$f":"SUM(D138:D139)","v":0},{"$f":"SUM(E138:E139)","v":0},0,0,0,0,0,0,0,null,{"$f":"'Раздел IV'!E138","v":0}]
["  в том числе включенным:\n  в Паралимпийскую программу",132,0,{"$f":"SUM(D59,D62,D64,D70:D79,D81:D84,D86:D90,D93,D95:D96,D98,D103,D106:D112,D115,D120:D121,D131,D133:D134)","v":0},{"$f":"SUM(E59,E62,E64,E70:E79,E81:E84,E86:E90,E93,E95:E96,E98,E103,E106:E112,E115,E120:E121,E131,E133:E134)","v":0},0,0,0,0,0,0,0,null,{"$f":"'Раздел IV'!E139","v":0}]
["  в Сурдлимпийскую программу",133,0,{"$f":"SUM(D17:D36,D38:D45)","v":0},{"$f":"SUM(E17:E36,E38:E45)","v":0},0,0,0,0,0,0,0,null,{"$f":"'Раздел IV'!E140","v":0}]
["Ведомственная принадлежность\nорганизаций",134,0,{"$f":"SUM(D141:D143)","v":0},{"$f":"SUM(E141:E143)","v":0},0,0,0,0,0,0,0,null,{"$f":"'Раздел IV'!E141","v":0}]
["  в том числе:\n  в сфере физической культуры и спорта",135,0,null,null,null,null,null,null,null,null,null,null,{"$f":"'Раздел IV'!E142","v":0}]
["  в сфере образования",136,0,null,null,null,null,null,null,null,null,null,null,{"$f":"'Раздел IV'!E143","v":0}]
["  в сфере труда и социальной защиты",137,0,null,null,null,null,null,null,null,null,null,null,{"$f":"'Раздел IV'!E144","v":0}]

{"sheet":"Раздел VI","index":6,"n_rows":142,"n_cols":40,"rows_kept":142,"cut":false,"hidden":false,"merged":[[2,33,2,37],[1,1,3,1],[1,0,3,0],[1,2,1,37],[0,0,0,37],[2,2,2,7],[2,8,2,12],[2,13,2,17],[2,18,2,22],[2,23,2,27],[2,28,2,32]]}
["Раздел VI. Сведения о результатах выступления на соревнованиях, единица"]
["Наименование вида спорта,\nспортивной дисциплины","№\nстроки","Результаты выступлений на соревнованиях"]
[null,null,"Всего",null,null,null,null,null,"Чемпионат России",null,null,null,null,"Первенство России\nсреди юниоров и юниорок",null,null,null,null,"Первенство России\nсреди юношей и девушек",null,null,null,null,"Кубок России",null,null,null,null,"Всероссийская спартакиада\nинвалидов",null,null,null,null,"Прочие официальные\nвсероссийские соревнования"]
[null,null,"медали\n(1-3 места)",1,2,3,"4-6","участие",1,2,3,"4-6","участие",1,2,3,"4-6","участие",1,2,3,"4-6","участие",1,2,3,"4-6","участие",1,2,3,"4-6","участие",1,2,3,"4-6","участие"]
[1,2,3,4,5,6,7,8,9,10,11,12,13,14,15,16,17,18,19,20,21,22,23,24,25,26,27,28,29,30,31,32,33,34,35,36,37,38,null,"Раздел 4"]
["Всего (сумма строк 09, 41, 63, 95, 119, 121)",1,{"$f":"SUM(C14,C46,C68,C100,C124,C126)","v":0},{"$f":"SUM(D14,D46,D68,D100,D124,D126)","v":0},0,0,0,0,0,0,0,0,0,0,0,0,0,0,0,0,0,0,0,0,0,0,0,0,0,0,0,0,0,0,0,0,0,0,null,{"$f":"'Раздел IV'!E8","v":0}]
["  в том числе по виду организации:\n  спортивно-адаптивные школы",2,{"$f":"SUM(D7:F7)","v":0},{"$f":"SUM(I7,N7,S7,X7,AC7,AH7)","v":0},{"$f":"SUM(J7,O7,T7,Y7,AD7,AI7)","v":0},{"$f":"SUM(K7,P7,U7,Z7,AE7,AJ7)","v":0},{"$f":"SUM(L7,Q7,V7,AA7,AF7,AK7)","v":0},{"$f":"SUM(M7,R7,W7,AB7,AG7,AL7)","v":0},null,null,null,null,null,null,null,null,null,null,null,null,null,null,null,null,null,null,null,null,null,null,null,null,null,null,null,null,null,null,null,{"$f":"'Раздел IV'!E9","v":0}]
["  спортивно-адаптивные школы\n  паралимпийского и (или) сурдлимпийского\n  резерва",3,{"$f":"SUM(D8:F8)","v":0},{"$f":"SUM(I8,N8,S8,X8,AC8,AH8)","v":0},{"$f":"SUM(J8,O8,T8,Y8,AD8,AI8)","v":0},{"$f":"SUM(K8,P8,U8,Z8,AE8,AJ8)","v":0},{"$f":"SUM(L8,Q8,V8,AA8,AF8,AK8)","v":0},{"$f":"SUM(M8,R8,W8,AB8,AG8,AL8)","v":0},null,null,null,null,null,null,null,null,null,null,null,null,null,null,null,null,null,null,null,null,null,null,null,null,null,null,null,null,null,null,null,{"$f":"'Раздел IV'!E10","v":0}]
["  центры подготовки спортивного резерва\n  по адаптивным видам спорта",4,0,0,0,0,0,0,null,null,null,null,null,null,null,null,null,null,null,null,null,null,null,null,null,null,null,null,null,null,null,null,null,null,null,null,null,null,null,{"$f":"'Раздел IV'!E11","v":0}]
["  СШ, СШОР, УОР",5,0,0,0,0,0,0,null,null,null,null,null,null,null,null,null,null,null,null,null,null,null,null,null,null,null,null,null,null,null,null,null,null,null,null,null,null,null,{"$f":"'Раздел IV'!E12","v":0}]
["  физкультурно-спортивные клубы\n  инвалидов",6,0,0,0,0,0,0,null,null,null,null,null,null,null,null,null,null,null,null,null,null,null,null,null,null,null,null,null,null,null,null,null,null,null,null,null,null,null,{"$f":"'Раздел IV'!E13","v":0}]
["  учреждения и организации\n  при спортивных сооружениях",7,0,0,0,0,0,0,null,null,null,null,null,null,null,null,null,null,null,null,null,null,null,null,null,null,null,null,null,null,null,null,null,null,null,null,null,null,null,{"$f":"'Раздел IV'!E14","v":0}]
["  другие организации",8,0,0,0,0,0,0,null,null,null,null,null,null,null,null,null,null,null,null,null,null,null,null,null,null,null,null,null,null,null,null,null,null,null,null,null,null,null,{"$f":"'Раздел IV'!E15","v":0}]
["Всего по виду спорта \"Спорт глухих\"",9,0,0,0,0,0,0,{"$f":"SUM(I15:I45)","v":0},{"$f":"SUM(J15:J45)","v":0},0,0,0,0,0,0,0,0,0,0,0,0,0,0,0,0,0,0,0,0,0,0,0,0,0,0,0,0,null,{"$f":"'Раздел IV'!E16","v":0}]
["  в том числе по дисциплинам:\n  армрестлинг",10,0,0,0,0,0,0,null,null,null,null,null,null,null,null,null,null,null,null,null,null,null,null,null,null,null,null,null,null,null,null,null,null,null,null,null,null,null,{"$f":"'Раздел IV'!E17","v":0}]
["  бадминтон",11,0,0,0,0,0,0,null,null,null,null,null,null,null,null,null,null,null,null,null,null,null,null,null,null,null,null,null,null,null,null,null,null,null,null,null,null,null,{"$f":"'Раздел IV'!E18","v":0}]
["  баскетбол",12,0,0,0,0,0,0,null,null,null,null,null,null,null,null,null,null,null,null,null,null,null,null,null,null,null,null,null,null,null,null,null,null,null,null,null,null,null,{"$f":"'Раздел IV'!E19","v":0}]
["  боулинг",13,0,0,0,0,0,0,null,null,null,null,null,null,null,null,null,null,null,null,null,null,null,null,null,null,null,null,null,null,null,null,null,null,null,null,null,null,null,{"$f":"'Раздел IV'!E20","v":0}]
["  велосипедный спорт - маунтинбайк",14,0,0,0,0,0,0,null,null,null,null,null,null,null,null,null,null,null,null,null,null,null,null,null,null,null,null,null,null,null,null,null,null,null,null,null,null,null,{"$f":"'Раздел IV'!E21","v":0}]
["  велосипедный спорт - шоссе",15,0,0,0,0,0,0,null,null,null,null,null,null,null,null,null,null,null,null,null,null,null,null,null,null,null,null,null,null,null,null,null,null,null,null,null,null,null,{"$f":"'Раздел IV'!E22","v":0}]
["  волейбол",16,0,0,0,0,0,0,null,null,null,null,null,null,null,null,null,null,null,null,null,null,null,null,null,null,null,null,null,null,null,null,null,null,null,null,null,null,null,{"$f":"'Раздел IV'!E23","v":0}]
["  волейбол - пляжный",17,0,0,0,0,0,0,null,null,null,null,null,null,null,null,null,null,null,null,null,null,null,null,null,null,null,null,null,null,null,null,null,null,null,null,null,null,null,{"$f":"'Раздел IV'!E24","v":0}]
["  вольная борьба",18,0,0,0,0,0,0,null,null,null,null,null,null,null,null,null,null,null,null,null,null,null,null,null,null,null,null,null,null,null,null,null,null,null,null,null,null,null,{"$f":"'Раздел IV'!E25","v":0}]
["  гандбол",19,0,0,0,0,0,0,null,null,null,null,null,null,null,null,null,null,null,null,null,null,null,null,null,null,null,null,null,null,null,null,null,null,null,null,null,null,null,{"$f":"'Раздел IV'!E26","v":0}]
["  гольф",20,0,0,0,0,0,0,null,null,null,null,null,null,null,null,null,null,null,null,null,null,null,null,null,null,null,null,null,null,null,null,null,null,null,null,null,null,null,{"$f":"'Раздел IV'!E27","v":0}]
["  горнолыжный спорт",21,0,0,0,0,0,0,null,null,null,null,null,null,null,null,null,null,null,null,null,null,null,null,null,null,null,null,null,null,null,null,null,null,null,null,null,null,null,{"$f":"'Раздел IV'!E28","v":0}]
["  греко-римская борьба",22,0,0,0,0,0,0,null,null,null,null,null,null,null,null,null,null,null,null,null,null,null,null,null,null,null,null,null,null,null,null,null,null,null,null,null,null,null,{"$f":"'Раздел IV'!E29","v":0}]
["  дзюдо",23,0,0,0,0,0,0,null,null,null,null,null,null,null,null,null,null,null,null,null,null,null,null,null,null,null,null,null,null,null,null,null,null,null,null,null,null,null,{"$f":"'Раздел IV'!E30","v":0}]
["  каратэ",24,0,0,0,0,0,0,null,null,null,null,null,null,null,null,null,null,null,null,null,null,null,null,null,null,null,null,null,null,null,null,null,null,null,null,null,null,null,{"$f":"'Раздел IV'!E31","v":0}]
["  кёрлинг",25,0,0,0,0,0,0,null,null,null,null,null,null,null,null,null,null,null,null,null,null,null,null,null,null,null,null,null,null,null,null,null,null,null,null,null,null,null,{"$f":"'Раздел IV'!E32","v":0}]
["  легкая атлетика",26,0,0,0,0,0,0,null,null,null,null,null,null,null,null,null,null,null,null,null,null,null,null,null,null,null,null,null,null,null,null,null,null,null,null,null,null,null,{"$f":"'Раздел IV'!E33","v":0}]
["  лыжные гонки",27,0,0,0,0,0,0,null,null,null,null,null,null,null,null,null,null,null,null,null,null,null,null,null,null,null,null,null,null,null,null,null,null,null,null,null,null,null,{"$f":"'Раздел IV'!E34","v":0}]
["  настольный теннис",28,0,0,0,0,0,0,null,null,null,null,null,null,null,null,null,null,null,null,null,null,null,null,null,null,null,null,null,null,null,null,null,null,null,null,null,null,null,{"$f":"'Раздел IV'!E35","v":0}]
["  плавание",29,0,0,0,0,0,0,null,null,null,null,null,null,null,null,null,null,null,null,null,null,null,null,null,null,null,null,null,null,null,null,null,null,null,null,null,null,null,{"$f":"'Раздел IV'!E36","v":0}]
["  пулевая стрельба",30,0,0,0,0,0,0,null,null,null,null,null,null,null,null,null,null,null,null,null,null,null,null,null,null,null,null,null,null,null,null,null,null,null,null,null,null,null,{"$f":"'Раздел IV'!E37","v":0}]
["  самбо",31,0,0,0,0,0,0,null,null,null,null,null,null,null,null,null,null,null,null,null,null,null,null,null,null,null,null,null,null,null,null,null,null,null,null,null,null,null,{"$f":"'Раздел IV'!E38","v":0}]
["  сноуборд",32,0,0,0,0,0,0,null,null,null,null,null,null,null,null,null,null,null,null,null,null,null,null,null,null,null,null,null,null,null,null,null,null,null,null,null,null,null,{"$f":"'Раздел IV'!E39","v":0}]
["  спортивное ориентирование",33,0,0,0,0,0,0,null,null,null,null,null,null,null,null,null,null,null,null,null,null,null,null,null,null,null,null,null,null,null,null,null,null,null,null,null,null,null,{"$f":"'Раздел IV'!E40","v":0}]
["  теннис",34,0,0,0,0,0,0,null,null,null,null,null,null,null,null,null,null,null,null,null,null,null,null,null,null,null,null,null,null,null,null,null,null,null,null,null,null,null,{"$f":"'Раздел IV'!E41","v":0}]
["  тхэквондо",35,0,0,0,0,0,0,null,null,null,null,null,null,null,null,null,null,null,null,null,null,null,null,null,null,null,null,null,null,null,null,null,null,null,null,null,null,null,{"$f":"'Раздел IV'!E42","v":0}]
["  футбол",36,0,0,0,0,0,0,null,null,null,null,null,null,null,null,null,null,null,null,null,null,null,null,null,null,null,null,null,null,null,null,null,null,null,null,null,null,null,{"$f":"'Раздел IV'!E43","v":0}]
["  футзал",37,0,0,0,0,0,0,null,null,null,null,null,null,null,null,null,null,null,null,null,null,null,null,null,null,null,null,null,null,null,null,null,null,null,null,null,null,null,{"$f":"'Раздел IV'!E44","v":0}]
["  хоккей",38,0,0,0,0,0,0,null,null,null,null,null,null,null,null,null,null,null,null,null,null,null,null,null,null,null,null,null,null,null,null,null,null,null,null,null,null,null,{"$f":"'Раздел IV'!E45","v":0}]
["  шахматы",39,0,0,0,0,0,0,null,null,null,null,null,null,null,null,null,null,null,null,null,null,null,null,null,null,null,null,null,null,null,null,null,null,null,null,null,null,null,{"$f":"'Раздел IV'!E46","v":0}]
["  шашки",40,0,0,0,0,0,0,null,null,null,null,null,null,null,null,null,null,null,null,null,null,null,null,null,null,null,null,null,null,null,null,null,null,null,null,null,null,null,{"$f":"'Раздел IV'!E47","v":0}]
["Всего по виду спорта \"Спорт лиц\nс интеллектуальными нарушениями\"",41,0,0,0,0,0,0,{"$f":"SUM(I47:I67)","v":0},{"$f":"SUM(J47:J67)","v":0},0,0,0,0,0,0,0,0,0,0,0,0,0,0,0,0,0,0,0,0,0,0,0,0,0,0,0,0,null,{"$f":"'Раздел IV'!E48","v":0}]
["  в том числе по дисциплинам:\n  академическая гребля ",42,0,0,0,0,0,0,null,null,null,null,null,null,null,null,null,null,null,null,null,null,null,null,null,null,null,null,null,null,null,null,null,null,null,null,null,null,null,{"$f":"'Раздел IV'!E49","v":0}]
["  академическая гребля - индор",43,0,0,0,0,0,0,null,null,null,null,null,null,null,null,null,null,null,null,null,null,null,null,null,null,null,null,null,null,null,null,null,null,null,null,null,null,null,{"$f":"'Раздел IV'!E50","v":0}]
["  бадминтон",44,0,0,0,0,0,0,null,null,null,null,null,null,null,null,null,null,null,null,null,null,null,null,null,null,null,null,null,null,null,null,null,null,null,null,null,null,null,{"$f":"'Раздел IV'!E51","v":0}]
["  баскетбол",45,0,0,0,0,0,0,null,null,null,null,null,null,null,null,null,null,null,null,null,null,null,null,null,null,null,null,null,null,null,null,null,null,null,null,null,null,null,{"$f":"'Раздел IV'!E52","v":0}]
["  баскетбол 3х3",46,0,0,0,0,0,0,null,null,null,null,null,null,null,null,null,null,null,null,null,null,null,null,null,null,null,null,null,null,null,null,null,null,null,null,null,null,null,{"$f":"'Раздел IV'!E53","v":0}]
["  велоспорт-трек",47,0,0,0,0,0,0,null,null,null,null,null,null,null,null,null,null,null,null,null,null,null,null,null,null,null,null,null,null,null,null,null,null,null,null,null,null,null,{"$f":"'Раздел IV'!E54","v":0}]
["  велоспорт-шоссе",48,0,0,0,0,0,0,null,null,null,null,null,null,null,null,null,null,null,null,null,null,null,null,null,null,null,null,null,null,null,null,null,null,null,null,null,null,null,{"$f":"'Раздел IV'!E55","v":0}]
["  гандбол",49,0,0,0,0,0,0,null,null,null,null,null,null,null,null,null,null,null,null,null,null,null,null,null,null,null,null,null,null,null,null,null,null,null,null,null,null,null,{"$f":"'Раздел IV'!E56","v":0}]
["  горнолыжный спорт",50,0,0,0,0,0,0,null,null,null,null,null,null,null,null,null,null,null,null,null,null,null,null,null,null,null,null,null,null,null,null,null,null,null,null,null,null,null,{"$f":"'Раздел IV'!E57","v":0}]
["  дзюдо",51,0,0,0,0,0,0,null,null,null,null,null,null,null,null,null,null,null,null,null,null,null,null,null,null,null,null,null,null,null,null,null,null,null,null,null,null,null,{"$f":"'Раздел IV'!E58","v":0}]
["  конный спорт",52,0,0,0,0,0,0,null,null,null,null,null,null,null,null,null,null,null,null,null,null,null,null,null,null,null,null,null,null,null,null,null,null,null,null,null,null,null,{"$f":"'Раздел IV'!E59","v":0}]
["  легкая атлетика",53,0,0,0,0,0,0,null,null,null,null,null,null,null,null,null,null,null,null,null,null,null,null,null,null,null,null,null,null,null,null,null,null,null,null,null,null,null,{"$f":"'Раздел IV'!E60","v":0}]
["  лыжные гонки",54,0,0,0,0,0,0,null,null,null,null,null,null,null,null,null,null,null,null,null,null,null,null,null,null,null,null,null,null,null,null,null,null,null,null,null,null,null,{"$f":"'Раздел IV'!E61","v":0}]
["  мини-футбол (футзал)",55,0,0,0,0,0,0,null,null,null,null,null,null,null,null,null,null,null,null,null,null,null,null,null,null,null,null,null,null,null,null,null,null,null,null,null,null,null,{"$f":"'Раздел IV'!E62","v":0}]
["  настольный теннис",56,0,0,0,0,0,0,null,null,null,null,null,null,null,null,null,null,null,null,null,null,null,null,null,null,null,null,null,null,null,null,null,null,null,null,null,null,null,{"$f":"'Раздел IV'!E63","v":0}]
["  пауэрлифтинг (троеборье)",57,0,0,0,0,0,0,null,null,null,null,null,null,null,null,null,null,null,null,null,null,null,null,null,null,null,null,null,null,null,null,null,null,null,null,null,null,null,{"$f":"'Раздел IV'!E64","v":0}]
["  плавание",58,0,0,0,0,0,0,null,null,null,null,null,null,null,null,null,null,null,null,null,null,null,null,null,null,null,null,null,null,null,null,null,null,null,null,null,null,null,{"$f":"'Раздел IV'!E65","v":0}]
["  спортивная гимнастика",59,0,0,0,0,0,0,null,null,null,null,null,null,null,null,null,null,null,null,null,null,null,null,null,null,null,null,null,null,null,null,null,null,null,null,null,null,null,{"$f":"'Раздел IV'!E66","v":0}]
["  теннис",60,0,0,0,0,0,0,null,null,null,null,null,null,null,null,null,null,null,null,null,null,null,null,null,null,null,null,null,null,null,null,null,null,null,null,null,null,null,{"$f":"'Раздел IV'!E67","v":0}]
["  тхэквондо (пхумсэ)",61,0,0,0,0,0,0,null,null,null,null,null,null,null,null,null,null,null,null,null,null,null,null,null,null,null,null,null,null,null,null,null,null,null,null,null,null,null,{"$f":"'Раздел IV'!E68","v":0}]
["  футбол",62,0,0,0,0,0,0,null,null,null,null,null,null,null,null,null,null,null,null,null,null,null,null,null,null,null,null,null,null,null,null,null,null,null,null,null,null,null,{"$f":"'Раздел IV'!E69","v":0}]
["Всего по виду спорта\n\"Спорт лиц с поражением ОДА\"",63,0,0,0,0,0,0,{"$f":"SUM(I69:I99)","v":0},{"$f":"SUM(J69:J99)","v":0},0,0,0,0,0,0,0,0,0,0,0,0,0,0,0,0,0,0,0,0,0,0,0,0,0,0,0,0,null,{"$f":"'Раздел IV'!E70","v":0}]
["  в том числе по дисциплинам:\n  академическая гребля ",64,0,0,0,0,0,0,null,null,null,null,null,null,null,null,null,null,null,null,null,null,null,null,null,null,null,null,null,null,null,null,null,null,null,null,null,null,null,{"$f":"'Раздел IV'!E71","v":0}]
["  бадминтон",65,0,0,0,0,0,0,null,null,null,null,null,null,null,null,null,null,null,null,null,null,null,null,null,null,null,null,null,null,null,null,null,null,null,null,null,null,null,{"$f":"'Раздел IV'!E72","v":0}]
["  баскетбол на колясках",66,0,0,0,0,0,0,null,null,null,null,null,null,null,null,null,null,null,null,null,null,null,null,null,null,null,null,null,null,null,null,null,null,null,null,null,null,null,{"$f":"'Раздел IV'!E73","v":0}]
["  биатлон",67,{"$f":"SUM(D72:F72)","v":0},{"$f":"SUM(I72,N72,S72,X72,AC72,AH72)","v":0},{"$f":"SUM(J72,O72,T72,Y72,AD72,AI72)","v":0},{"$f":"SUM(K72,P72,U72,Z72,AE72,AJ72)","v":0},{"$f":"SUM(L72,Q72,V72,AA72,AF72,AK72)","v":0},{"$f":"SUM(M72,R72,W72,AB72,AG72,AL72)","v":0},null,null,null,null,null,null,null,null,null,null,null,null,null,null,null,null,null,null,null,null,null,null,null,null,null,null,null,null,null,null,null,{"$f":"'Раздел IV'!E74","v":0}]
["  бочча",68,0,0,0,0,0,0,null,null,null,null,null,null,null,null,null,null,null,null,null,null,null,null,null,null,null,null,null,null,null,null,null,null,null,null,null,null,null,{"$f":"'Раздел IV'!E75","v":0}]
["  велоспорт - трек",69,0,0,0,0,0,0,null,null,null,null,null,null,null,null,null,null,null,null,null,null,null,null,null,null,null,null,null,null,null,null,null,null,null,null,null,null,null,{"$f":"'Раздел IV'!E76","v":0}]
["  велоспорт - шоссе",70,0,0,0,0,0,0,null,null,null,null,null,null,null,null,null,null,null,null,null,null,null,null,null,null,null,null,null,null,null,null,null,null,null,null,null,null,null,{"$f":"'Раздел IV'!E77","v":0}]
["  волейбол сидя",71,0,0,0,0,0,0,null,null,null,null,null,null,null,null,null,null,null,null,null,null,null,null,null,null,null,null,null,null,null,null,null,null,null,null,null,null,null,{"$f":"'Раздел IV'!E78","v":0}]
["  горнолыжный спорт",72,0,0,0,0,0,0,null,null,null,null,null,null,null,null,null,null,null,null,null,null,null,null,null,null,null,null,null,null,null,null,null,null,null,null,null,null,null,{"$f":"'Раздел IV'!E79","v":0}]
["  гребля на байдарках и каноэ",73,0,0,0,0,0,0,null,null,null,null,null,null,null,null,null,null,null,null,null,null,null,null,null,null,null,null,null,null,null,null,null,null,null,null,null,null,null,{"$f":"'Раздел IV'!E80","v":0}]
["  дартс",74,0,0,0,0,0,0,null,null,null,null,null,null,null,null,null,null,null,null,null,null,null,null,null,null,null,null,null,null,null,null,null,null,null,null,null,null,null,{"$f":"'Раздел IV'!E81","v":0}]
["  конный спорт",75,0,0,0,0,0,0,null,null,null,null,null,null,null,null,null,null,null,null,null,null,null,null,null,null,null,null,null,null,null,null,null,null,null,null,null,null,null,{"$f":"'Раздел IV'!E82","v":0}]
["  легкая атлетика",76,0,0,0,0,0,0,null,null,null,null,null,null,null,null,null,null,null,null,null,null,null,null,null,null,null,null,null,null,null,null,null,null,null,null,null,null,null,{"$f":"'Раздел IV'!E83","v":0}]
["  лыжные гонки",77,0,0,0,0,0,0,null,null,null,null,null,null,null,null,null,null,null,null,null,null,null,null,null,null,null,null,null,null,null,null,null,null,null,null,null,null,null,{"$f":"'Раздел IV'!E84","v":0}]
["  настольный теннис",78,0,0,0,0,0,0,null,null,null,null,null,null,null,null,null,null,null,null,null,null,null,null,null,null,null,null,null,null,null,null,null,null,null,null,null,null,null,{"$f":"'Раздел IV'!E85","v":0}]
["  парусный спорт",79,0,0,0,0,0,0,null,null,null,null,null,null,null,null,null,null,null,null,null,null,null,null,null,null,null,null,null,null,null,null,null,null,null,null,null,null,null,{"$f":"'Раздел IV'!E86","v":0}]
["  пауэрлифтинг",80,0,0,0,0,0,0,null,null,null,null,null,null,null,null,null,null,null,null,null,null,null,null,null,null,null,null,null,null,null,null,null,null,null,null,null,null,null,{"$f":"'Раздел IV'!E87","v":0}]
["  плавание",81,0,0,0,0,0,0,null,null,null,null,null,null,null,null,null,null,null,null,null,null,null,null,null,null,null,null,null,null,null,null,null,null,null,null,null,null,null,{"$f":"'Раздел IV'!E88","v":0}]
["  пулевая стрельба",82,0,0,0,0,0,0,null,null,null,null,null,null,null,null,null,null,null,null,null,null,null,null,null,null,null,null,null,null,null,null,null,null,null,null,null,null,null,{"$f":"'Раздел IV'!E89","v":0}]
["  регби на колясках",83,0,0,0,0,0,0,null,null,null,null,null,null,null,null,null,null,null,null,null,null,null,null,null,null,null,null,null,null,null,null,null,null,null,null,null,null,null,{"$f":"'Раздел IV'!E90","v":0}]
["  сноуборд",84,0,0,0,0,0,0,null,null,null,null,null,null,null,null,null,null,null,null,null,null,null,null,null,null,null,null,null,null,null,null,null,null,null,null,null,null,null,{"$f":"'Раздел IV'!E91","v":0}]
["  спортивное ориентирование",85,0,0,0,0,0,0,null,null,null,null,null,null,null,null,null,null,null,null,null,null,null,null,null,null,null,null,null,null,null,null,null,null,null,null,null,null,null,{"$f":"'Раздел IV'!E92","v":0}]
["  стендовая стрельба",86,0,0,0,0,0,0,null,null,null,null,null,null,null,null,null,null,null,null,null,null,null,null,null,null,null,null,null,null,null,null,null,null,null,null,null,null,null,{"$f":"'Раздел IV'!E93","v":0}]
["  стрельба из лука",87,0,0,0,0,0,0,null,null,null,null,null,null,null,null,null,null,null,null,null,null,null,null,null,null,null,null,null,null,null,null,null,null,null,null,null,null,null,{"$f":"'Раздел IV'!E94","v":0}]
["  танцы на колясках",88,0,0,0,0,0,0,null,null,null,null,null,null,null,null,null,null,null,null,null,null,null,null,null,null,null,null,null,null,null,null,null,null,null,null,null,null,null,{"$f":"'Раздел IV'!E95","v":0}]
["  теннис на колясках",89,0,0,0,0,0,0,null,null,null,null,null,null,null,null,null,null,null,null,null,null,null,null,null,null,null,null,null,null,null,null,null,null,null,null,null,null,null,{"$f":"'Раздел IV'!E96","v":0}]
["  фехтование",90,0,0,0,0,0,0,null,null,null,null,null,null,null,null,null,null,null,null,null,null,null,null,null,null,null,null,null,null,null,null,null,null,null,null,null,null,null,{"$f":"'Раздел IV'!E97","v":0}]
["  футбол ампутантов",91,0,0,0,0,0,0,null,null,null,null,null,null,null,null,null,null,null,null,null,null,null,null,null,null,null,null,null,null,null,null,null,null,null,null,null,null,null,{"$f":"'Раздел IV'!E98","v":0}]
["  хоккей - следж",92,0,0,0,0,0,0,null,null,null,null,null,null,null,null,null,null,null,null,null,null,null,null,null,null,null,null,null,null,null,null,null,null,null,null,null,null,null,{"$f":"'Раздел IV'!E99","v":0}]
["  шахматы",93,0,0,0,0,0,0,null,null,null,null,null,null,null,null,null,null,null,null,null,null,null,null,null,null,null,null,null,null,null,null,null,null,null,null,null,null,null,{"$f":"'Раздел IV'!E100","v":0}]
["  шашки",94,0,0,0,0,0,0,null,null,null,null,null,null,null,null,null,null,null,null,null,null,null,null,null,null,null,null,null,null,null,null,null,null,null,null,null,null,null,{"$f":"'Раздел IV'!E101","v":0}]
["Всего по виду спорта \"Спорт слепых\"",95,0,0,0,0,0,0,{"$f":"SUM(I101:I123)","v":0},{"$f":"SUM(J101:J123)","v":0},0,0,0,0,0,0,0,0,0,0,0,0,0,0,0,0,0,0,0,0,0,0,0,0,0,0,0,0,null,{"$f":"'Раздел IV'!E102","v":0}]
["  в том числе по дисциплинам:\n  армрестлинг",96,0,0,0,0,0,0,null,null,null,null,null,null,null,null,null,null,null,null,null,null,null,null,null,null,null,null,null,null,null,null,null,null,null,null,null,null,null,{"$f":"'Раздел IV'!E103","v":0}]
["  биатлон",97,0,0,0,0,0,0,null,null,null,null,null,null,null,null,null,null,null,null,null,null,null,null,null,null,null,null,null,null,null,null,null,null,null,null,null,null,null,{"$f":"'Раздел IV'!E104","v":0}]
["  борьба",98,0,0,0,0,0,0,null,null,null,null,null,null,null,null,null,null,null,null,null,null,null,null,null,null,null,null,null,null,null,null,null,null,null,null,null,null,null,{"$f":"'Раздел IV'!E105","v":0}]
["  боулинг",99,0,0,0,0,0,0,null,null,null,null,null,null,null,null,null,null,null,null,null,null,null,null,null,null,null,null,null,null,null,null,null,null,null,null,null,null,null,{"$f":"'Раздел IV'!E106","v":0}]
["  велоспорт-тандем - трек",100,0,0,0,0,0,0,null,null,null,null,null,null,null,null,null,null,null,null,null,null,null,null,null,null,null,null,null,null,null,null,null,null,null,null,null,null,null,{"$f":"'Раздел IV'!E107","v":0}]
["  велоспорт-тандем - шоссе",101,0,0,0,0,0,0,null,null,null,null,null,null,null,null,null,null,null,null,null,null,null,null,null,null,null,null,null,null,null,null,null,null,null,null,null,null,null,{"$f":"'Раздел IV'!E108","v":0}]
["  голбол",102,0,0,0,0,0,0,null,null,null,null,null,null,null,null,null,null,null,null,null,null,null,null,null,null,null,null,null,null,null,null,null,null,null,null,null,null,null,{"$f":"'Раздел IV'!E109","v":0}]
["  горнолыжный спорт",103,0,0,0,0,0,0,null,null,null,null,null,null,null,null,null,null,null,null,null,null,null,null,null,null,null,null,null,null,null,null,null,null,null,null,null,null,null,{"$f":"'Раздел IV'!E110","v":0}]
["  дзюдо",104,0,0,0,0,0,0,null,null,null,null,null,null,null,null,null,null,null,null,null,null,null,null,null,null,null,null,null,null,null,null,null,null,null,null,null,null,null,{"$f":"'Раздел IV'!E111","v":0}]
["  легкая атлетика",105,0,0,0,0,0,0,null,null,null,null,null,null,null,null,null,null,null,null,null,null,null,null,null,null,null,null,null,null,null,null,null,null,null,null,null,null,null,{"$f":"'Раздел IV'!E112","v":0}]
["  лыжные гонки",106,0,0,0,0,0,0,null,null,null,null,null,null,null,null,null,null,null,null,null,null,null,null,null,null,null,null,null,null,null,null,null,null,null,null,null,null,null,{"$f":"'Раздел IV'!E113","v":0}]
["  настольный теннис",107,0,0,0,0,0,0,null,null,null,null,null,null,null,null,null,null,null,null,null,null,null,null,null,null,null,null,null,null,null,null,null,null,null,null,null,null,null,{"$f":"'Раздел IV'!E114","v":0}]
["  пауэрлифтинг",108,0,0,0,0,0,0,null,null,null,null,null,null,null,null,null,null,null,null,null,null,null,null,null,null,null,null,null,null,null,null,null,null,null,null,null,null,null,{"$f":"'Раздел IV'!E115","v":0}]
["  плавание",109,0,0,0,0,0,0,null,null,null,null,null,null,null,null,null,null,null,null,null,null,null,null,null,null,null,null,null,null,null,null,null,null,null,null,null,null,null,{"$f":"'Раздел IV'!E116","v":0}]
["  пулевая стрельба",110,0,0,0,0,0,0,null,null,null,null,null,null,null,null,null,null,null,null,null,null,null,null,null,null,null,null,null,null,null,null,null,null,null,null,null,null,null,{"$f":"'Раздел IV'!E117","v":0}]
["  самбо",111,0,0,0,0,0,0,null,null,null,null,null,null,null,null,null,null,null,null,null,null,null,null,null,null,null,null,null,null,null,null,null,null,null,null,null,null,null,{"$f":"'Раздел IV'!E118","v":0}]
["  спортивный туризм - многоборье",112,0,0,0,0,0,0,null,null,null,null,null,null,null,null,null,null,null,null,null,null,null,null,null,null,null,null,null,null,null,null,null,null,null,null,null,null,null,{"$f":"'Раздел IV'!E119","v":0}]
["  торбол",113,0,0,0,0,0,0,null,null,null,null,null,null,null,null,null,null,null,null,null,null,null,null,null,null,null,null,null,null,null,null,null,null,null,null,null,null,null,{"$f":"'Раздел IV'!E120","v":0}]
["  триатлон",114,0,0,0,0,0,0,null,null,null,null,null,null,null,null,null,null,null,null,null,null,null,null,null,null,null,null,null,null,null,null,null,null,null,null,null,null,null,{"$f":"'Раздел IV'!E121","v":0}]
["  футбол - мини-футбол 5х5 (B1)",115,0,0,0,0,0,0,null,null,null,null,null,null,null,null,null,null,null,null,null,null,null,null,null,null,null,null,null,null,null,null,null,null,null,null,null,null,null,{"$f":"'Раздел IV'!E122","v":0}]
["  футбол - футзал 5х5 (B2, B3)",116,0,0,0,0,0,0,null,null,null,null,null,null,null,null,null,null,null,null,null,null,null,null,null,null,null,null,null,null,null,null,null,null,null,null,null,null,null,{"$f":"'Раздел IV'!E123","v":0}]
["  шахматы",117,0,0,0,0,0,0,null,null,null,null,null,null,null,null,null,null,null,null,null,null,null,null,null,null,null,null,null,null,null,null,null,null,null,null,null,null,null,{"$f":"'Раздел IV'!E124","v":0}]
["  шашки",118,0,0,0,0,0,0,null,null,null,null,null,null,null,null,null,null,null,null,null,null,null,null,null,null,null,null,null,null,null,null,null,null,null,null,null,null,null,{"$f":"'Раздел IV'!E125","v":0}]
["Всего по виду спорта\n\"Футбол лиц с заболеванием ЦП\"",119,0,0,0,0,0,0,{"$f":"SUM(I125)","v":0},{"$f":"SUM(J125)","v":0},0,0,0,0,0,0,0,0,0,0,0,0,0,0,0,0,0,0,0,0,0,0,0,0,0,0,0,{"$f":"SUM(AL125)","v":0},null,{"$f":"'Раздел IV'!E126","v":0}]
["  в том числе по дисциплине:\n  футбол лиц с заболеванием ЦП",120,0,0,0,0,0,0,null,null,null,null,null,null,null,null,null,null,null,null,null,null,null,null,null,null,null,null,null,null,null,null,null,null,null,null,null,null,null,{"$f":"'Раздел IV'!E127","v":0}]
["Всего по другим видам спорта, спортивным\nдисциплинам",121,0,0,0,0,0,0,{"$f":"SUM(I127:I134)","v":0},{"$f":"SUM(J127:J134)","v":0},0,0,0,0,0,0,0,0,0,0,0,0,0,0,0,0,0,0,0,0,0,0,0,0,0,0,0,0,null,{"$f":"'Раздел IV'!E128","v":0}]
["  в том числе:\n  армрестлинг (ПОДА)",122,0,0,0,0,0,0,null,null,null,null,null,null,null,null,null,null,null,null,null,null,null,null,null,null,null,null,null,null,null,null,null,null,null,null,null,null,null,{"$f":"'Раздел IV'!E129","v":0}]
["  водно-моторный спорт (ПОДА - мотолодка)",123,0,0,0,0,0,0,null,null,null,null,null,null,null,null,null,null,null,null,null,null,null,null,null,null,null,null,null,null,null,null,null,null,null,null,null,null,null,{"$f":"'Раздел IV'!E130","v":0}]
["  каратэ (ПОДА - ката)",124,0,0,0,0,0,0,null,null,null,null,null,null,null,null,null,null,null,null,null,null,null,null,null,null,null,null,null,null,null,null,null,null,null,null,null,null,null,{"$f":"'Раздел IV'!E131","v":0}]
["  кёрлинг (ПОДА - кёрлинг на колясках)",125,0,0,0,0,0,0,null,null,null,null,null,null,null,null,null,null,null,null,null,null,null,null,null,null,null,null,null,null,null,null,null,null,null,null,null,null,null,{"$f":"'Раздел IV'!E132","v":0}]
["  скалолазание (ПОДА - лазание на трудность)",126,0,0,0,0,0,0,null,null,null,null,null,null,null,null,null,null,null,null,null,null,null,null,null,null,null,null,null,null,null,null,null,null,null,null,null,null,null,{"$f":"'Раздел IV'!E133","v":0}]
["  триатлон (ПОДА - триатлон)",127,0,0,0,0,0,0,null,null,null,null,null,null,null,null,null,null,null,null,null,null,null,null,null,null,null,null,null,null,null,null,null,null,null,null,null,null,null,{"$f":"'Раздел IV'!E134","v":0}]
["  тхэквондо (ВТФ - ПОДА)",128,0,0,0,0,0,0,null,null,null,null,null,null,null,null,null,null,null,null,null,null,null,null,null,null,null,null,null,null,null,null,null,null,null,null,null,null,null,{"$f":"'Раздел IV'!E135","v":0}]
["  футбол (ПОДА - футбол на электроколясках)",129,0,0,0,0,0,0,null,null,null,null,null,null,null,null,null,null,null,null,null,null,null,null,null,null,null,null,null,null,null,null,null,null,null,null,null,null,null,{"$f":"'Раздел IV'!E136","v":0}]
["Всего по базовым видам спорта (из строки 01)",130,null,null,null,null,null,null,null,null,null,null,null,null,null,null,null,null,null,null,null,null,null,null,null,null,null,null,null,null,null,null,null,null,null,null,null,null,null,{"$f":"'Раздел IV'!E137","v":0}]
["Всего по видам спорта и (или) спортивным\nдисциплинам (из строки 01)",131,{"$f":"SUM(D136:F136)","v":0},{"$f":"SUM(I136,N136,S136,X136,AC136,AH136)","v":0},{"$f":"SUM(J136,O136,T136,Y136,AD136,AI136)","v":0},{"$f":"SUM(K136,P136,U136,Z136,AE136,AJ136)","v":0},{"$f":"SUM(L136,Q136,V136,AA136,AF136,AK136)","v":0},{"$f":"SUM(M136,R136,W136,AB136,AG136,AL136)","v":0},{"$f":"SUM(I137:I138)","v":0},{"$f":"SUM(J137:J138)","v":0},0,0,0,0,0,0,0,0,0,0,0,0,0,0,0,0,0,0,0,0,0,0,0,0,0,0,0,0,null,{"$f":"'Раздел IV'!E138","v":0}]
["  в том числе включенным:\n  в Паралимпийскую программу",132,0,0,0,0,0,0,{"$f":"SUM(I58,I61,I63,I69:I78,I80:I83,I85:I89,I92,I94:I95,I97,I102,I105:I111,I114,I119:I120,I130,I132:I133)","v":0},{"$f":"SUM(J58,J61,J63,J69:J78,J80:J83,J85:J89,J92,J94:J95,J97,J102,J105:J111,J114,J119:J120,J130,J132:J133)","v":0},{"$f":"SUM(K58,K61,K63,K69:K78,K80:K83,K85:K89,K92,K94:K95,K97,K102,K105:K111,K114,K119:K120,K130,K132:K133)","v":0},0,0,0,0,0,0,0,0,0,0,0,0,0,0,0,0,0,0,0,0,0,0,0,0,0,0,0,null,{"$f":"'Раздел IV'!E139","v":0}]
["  в Сурдлимпийскую программу",133,0,0,0,0,0,0,{"$f":"SUM(I16:I35,I37:I44)","v":0},{"$f":"SUM(J16:J35,J37:J44)","v":0},0,0,0,0,0,0,0,0,0,0,0,0,0,0,0,0,0,0,0,0,0,0,0,0,0,0,0,0,null,{"$f":"'Раздел IV'!E140","v":0}]
["Ведомственная принадлежность\nорганизаций",134,0,0,0,0,0,0,{"$f":"SUM(I140:I142)","v":0},{"$f":"SUM(J140:J142)","v":0},0,0,0,0,0,0,0,0,0,0,0,0,0,0,0,0,0,0,0,0,0,0,0,0,0,0,0,0,null,{"$f":"'Раздел IV'!E141","v":0}]
["  в том числе:\n  в сфере физической культуры и спорта",135,0,0,0,0,0,0,null,null,null,null,null,null,null,null,null,null,null,null,null,null,null,null,null,null,null,null,null,null,null,null,null,null,null,null,null,null,null,{"$f":"'Раздел IV'!E142","v":0}]
["  в сфере образования",136,0,0,0,0,0,0,null,null,null,null,null,null,null,null,null,null,null,null,null,null,null,null,null,null,null,null,null,null,null,null,null,null,null,null,null,null,null,{"$f":"'Раздел IV'!E143","v":0}]
["  в сфере труда и социальной защиты",137,0,0,0,0,0,0,null,null,null,null,null,null,null,null,null,null,null,null,null,null,null,null,null,null,null,null,null,null,null,null,null,null,null,null,null,null,null,{"$f":"'Раздел IV'!E144","v":0}]

{"sheet":"Раздел VII","index":7,"n_rows":143,"n_cols":25,"rows_kept":143,"cut":false,"hidden":false,"merged":[[0,0,0,21],[3,14,4,14],[3,15,3,17],[2,11,2,17],[3,18,3,20],[3,21,4,21],[2,18,2,21],[3,6,4,6],[3,7,4,7],[3,8,3,10],[2,4,2,10],[3,11,3,12],[3,13,4,13],[3,4,3,5],[3,3,4,3],[3,2,4,2],[1,0,4,0],[1,1,4,1],[2,2,2,3],[1,2,1,21]]}
["Раздел VII. Сведения о тренерско-преподавательском и тренерском составах, человек"]
["Наименование вида спорта,\nспортивной дисциплины","№\nстроки","Тренерско-преподавательский и тренерский составы"]
[null,null,"Численность тренеров-\nпреподавателей и тренеров",null,"тренеры-преподаватели и тренеры по основному месту работы:",null,null,null,null,null,null,"совместители:",null,null,null,null,null,null,"из гр. 4:"]
[null,null,"Всего","в том числе\nпо основному\nместу работы","имеют образование по специальности\n\"Адаптивная физическая культура\nи спорт\"",null,"Прошедшие\nпрофессиональную\nпереподготовку\n(за отчетный\nпериод)","Прошедшие\nповышение\nквалификации\n(за отчетный\nпериод)","квалификационные\nкатегории",null,null,"имеют образование по специальности\n\"Адаптивная физическая культура\nи спорт\"",null,"Прошедшие\nпрофессиональную\nпереподготовку\n(за отчетный\nпериод)","Прошедшие\nповышение\nквалификации\n(за отчетный\nпериод)","квалификационные\nкатегории",null,null,"в возрасте:",null,null,"Звание\n\"Заслуженный\nтренер России\""]
[null,null,null,null,"высшее","среднее",null,null,"высшая","первая","вторая","высшее","среднее",null,null,"высшая","первая","вторая","до 35 лет","от 36 до 64\nлет","старше 64\nлет"]
[1,2,3,4,5,6,7,8,9,10,11,12,13,14,15,16,17,18,19,20,21,22,null,"Раздел 4","Совмест"]
["Всего (сумма строк 09, 41, 63, 95, 119, 121)",1,{"$f":"SUM(C15,C47,C69,C101,C125,C127)","v":0},{"$f":"SUM(D15,D47,D69,D101,D125,D127)","v":0},0,0,0,0,0,0,0,0,0,0,0,0,0,0,0,0,0,0,null,{"$f":"'Раздел IV'!E8","v":0},{"$f":"C7-D7","v":0}]
["  в том числе по виду организации:\n  спортивно-адаптивные школы",2,null,null,null,null,null,null,null,null,null,null,null,null,null,null,null,null,null,null,null,null,null,{"$f":"'Раздел IV'!E9","v":0},{"$f":"C8-D8","v":0}]
["  спортивно-адаптивные школы\n  паралимпийского и (или) сурдлимпийского\n  резерва",3,null,null,null,null,null,null,null,null,null,null,null,null,null,null,null,null,null,null,null,null,null,{"$f":"'Раздел IV'!E10","v":0},0]
["  центры подготовки спортивного резерва\n  по адаптивным видам спорта",4,null,null,null,null,null,null,null,null,null,null,null,null,null,null,null,null,null,null,null,null,null,{"$f":"'Раздел IV'!E11","v":0},0]
["  СШ, СШОР, УОР",5,null,null,null,null,null,null,null,null,null,null,null,null,null,null,null,null,null,null,null,null,null,{"$f":"'Раздел IV'!E12","v":0},0]
["  физкультурно-спортивные клубы\n  инвалидов",6,null,null,null,null,null,null,null,null,null,null,null,null,null,null,null,null,null,null,null,null,null,{"$f":"'Раздел IV'!E13","v":0},0]
["  учреждения и организации\n  при спортивных сооружениях",7,null,null,null,null,null,null,null,null,null,null,null,null,null,null,null,null,null,null,null,null,null,{"$f":"'Раздел IV'!E14","v":0},0]
["  другие организации",8,null,null,null,null,null,null,null,null,null,null,null,null,null,null,null,null,null,null,null,null,null,{"$f":"'Раздел IV'!E15","v":0},0]
["Всего по виду спорта \"Спорт глухих\"",9,{"$f":"SUM(C16:C46)","v":0},{"$f":"SUM(D16:D46)","v":0},0,0,0,0,0,0,0,0,0,0,0,0,0,0,0,0,0,0,null,{"$f":"'Раздел IV'!E16","v":0},0]
["  в том числе по дисциплинам:\n  армрестлинг",10,null,null,null,null,null,null,null,null,null,null,null,null,null,null,null,null,null,null,null,null,null,{"$f":"'Раздел IV'!E17","v":0},0]
["  бадминтон",11,null,null,null,null,null,null,null,null,null,null,null,null,null,null,null,null,null,null,null,null,null,{"$f":"'Раздел IV'!E18","v":0},0]
["  баскетбол",12,null,null,null,null,null,null,null,null,null,null,null,null,null,null,null,null,null,null,null,null,null,{"$f":"'Раздел IV'!E19","v":0},0]
["  боулинг",13,null,null,null,null,null,null,null,null,null,null,null,null,null,null,null,null,null,null,null,null,null,{"$f":"'Раздел IV'!E20","v":0},0]
["  велосипедный спорт - маунтинбайк",14,null,null,null,null,null,null,null,null,null,null,null,null,null,null,null,null,null,null,null,null,null,{"$f":"'Раздел IV'!E21","v":0},0]
["  велосипедный спорт - шоссе",15,null,null,null,null,null,null,null,null,null,null,null,null,null,null,null,null,null,null,null,null,null,{"$f":"'Раздел IV'!E22","v":0},0]
["  волейбол",16,null,null,null,null,null,null,null,null,null,null,null,null,null,null,null,null,null,null,null,null,null,{"$f":"'Раздел IV'!E23","v":0},0]
["  волейбол - пляжный",17,null,null,null,null,null,null,null,null,null,null,null,null,null,null,null,null,null,null,null,null,null,{"$f":"'Раздел IV'!E24","v":0},0]
["  вольная борьба",18,null,null,null,null,null,null,null,null,null,null,null,null,null,null,null,null,null,null,null,null,null,{"$f":"'Раздел IV'!E25","v":0},0]
["  гандбол",19,null,null,null,null,null,null,null,null,null,null,null,null,null,null,null,null,null,null,null,null,null,{"$f":"'Раздел IV'!E26","v":0},0]
["  гольф",20,null,null,null,null,null,null,null,null,null,null,null,null,null,null,null,null,null,null,null,null,null,{"$f":"'Раздел IV'!E27","v":0},0]
["  горнолыжный спорт",21,null,null,null,null,null,null,null,null,null,null,null,null,null,null,null,null,null,null,null,null,null,{"$f":"'Раздел IV'!E28","v":0},0]
["  греко-римская борьба",22,null,null,null,null,null,null,null,null,null,null,null,null,null,null,null,null,null,null,null,null,null,{"$f":"'Раздел IV'!E29","v":0},0]
["  дзюдо",23,null,null,null,null,null,null,null,null,null,null,null,null,null,null,null,null,null,null,null,null,null,{"$f":"'Раздел IV'!E30","v":0},0]
["  каратэ",24,null,null,null,null,null,null,null,null,null,null,null,null,null,null,null,null,null,null,null,null,null,{"$f":"'Раздел IV'!E31","v":0},0]
["  кёрлинг",25,null,null,null,null,null,null,null,null,null,null,null,null,null,null,null,null,null,null,null,null,null,{"$f":"'Раздел IV'!E32","v":0},0]
["  легкая атлетика",26,null,null,null,null,null,null,null,null,null,null,null,null,null,null,null,null,null,null,null,null,null,{"$f":"'Раздел IV'!E33","v":0},0]
["  лыжные гонки",27,null,null,null,null,null,null,null,null,null,null,null,null,null,null,null,null,null,null,null,null,null,{"$f":"'Раздел IV'!E34","v":0},0]
["  настольный теннис",28,null,null,null,null,null,null,null,null,null,null,null,null,null,null,null,null,null,null,null,null,null,{"$f":"'Раздел IV'!E35","v":0},0]
["  плавание",29,null,null,null,null,null,null,null,null,null,null,null,null,null,null,null,null,null,null,null,null,null,{"$f":"'Раздел IV'!E36","v":0},0]
["  пулевая стрельба",30,null,null,null,null,null,null,null,null,null,null,null,null,null,null,null,null,null,null,null,null,null,{"$f":"'Раздел IV'!E37","v":0},0]
["  самбо",31,null,null,null,null,null,null,null,null,null,null,null,null,null,null,null,null,null,null,null,null,null,{"$f":"'Раздел IV'!E38","v":0},0]
["  сноуборд",32,null,null,null,null,null,null,null,null,null,null,null,null,null,null,null,null,null,null,null,null,null,{"$f":"'Раздел IV'!E39","v":0},0]
["  спортивное ориентирование",33,null,null,null,null,null,null,null,null,null,null,null,null,null,null,null,null,null,null,null,null,null,{"$f":"'Раздел IV'!E40","v":0},0]
["  теннис",34,null,null,null,null,null,null,null,null,null,null,null,null,null,null,null,null,null,null,null,null,null,{"$f":"'Раздел IV'!E41","v":0},0]
["  тхэквондо",35,null,null,null,null,null,null,null,null,null,null,null,null,null,null,null,null,null,null,null,null,null,{"$f":"'Раздел IV'!E42","v":0},0]
["  футбол",36,null,null,null,null,null,null,null,null,null,null,null,null,null,null,null,null,null,null,null,null,null,{"$f":"'Раздел IV'!E43","v":0},0]
["  футзал",37,null,null,null,null,null,null,null,null,null,null,null,null,null,null,null,null,null,null,null,null,null,{"$f":"'Раздел IV'!E44","v":0},0]
["  хоккей",38,null,null,null,null,null,null,null,null,null,null,null,null,null,null,null,null,null,null,null,null,null,{"$f":"'Раздел IV'!E45","v":0},0]
["  шахматы",39,null,null,null,null,null,null,null,null,null,null,null,null,null,null,null,null,null,null,null,null,null,{"$f":"'Раздел IV'!E46","v":0},0]
["  шашки",40,null,null,null,null,null,null,null,null,null,null,null,null,null,null,null,null,null,null,null,null,null,{"$f":"'Раздел IV'!E47","v":0},0]
["Всего по виду спорта \"Спорт лиц\nс интеллектуальными нарушениями\"",41,{"$f":"SUM(C48:C68)","v":0},{"$f":"SUM(D48:D68)","v":0},0,0,0,0,0,0,0,0,0,0,0,0,0,0,0,0,0,0,null,{"$f":"'Раздел IV'!E48","v":0},0]
["  в том числе по дисциплинам:\n  академическая гребля ",42,null,null,null,null,null,null,null,null,null,null,null,null,null,null,null,null,null,null,null,null,null,{"$f":"'Раздел IV'!E49","v":0},0]
["  академическая гребля - индор",43,null,null,null,null,null,null,null,null,null,null,null,null,null,null,null,null,null,null,null,null,null,{"$f":"'Раздел IV'!E50","v":0},0]
["  бадминтон",44,null,null,null,null,null,null,null,null,null,null,null,null,null,null,null,null,null,null,null,null,null,{"$f":"'Раздел IV'!E51","v":0},0]
["  баскетбол",45,null,null,null,null,null,null,null,null,null,null,null,null,null,null,null,null,null,null,null,null,null,{"$f":"'Раздел IV'!E52","v":0},0]
["  баскетбол 3х3",46,null,null,null,null,null,null,null,null,null,null,null,null,null,null,null,null,null,null,null,null,null,{"$f":"'Раздел IV'!E53","v":0},0]
["  велоспорт-трек",47,null,null,null,null,null,null,null,null,null,null,null,null,null,null,null,null,null,null,null,null,null,{"$f":"'Раздел IV'!E54","v":0},0]
["  велоспорт-шоссе",48,null,null,null,null,null,null,null,null,null,null,null,null,null,null,null,null,null,null,null,null,null,{"$f":"'Раздел IV'!E55","v":0},0]
["  гандбол",49,null,null,null,null,null,null,null,null,null,null,null,null,null,null,null,null,null,null,null,null,null,{"$f":"'Раздел IV'!E56","v":0},0]
["  горнолыжный спорт",50,null,null,null,null,null,null,null,null,null,null,null,null,null,null,null,null,null,null,null,null,null,{"$f":"'Раздел IV'!E57","v":0},0]
["  дзюдо",51,null,null,null,null,null,null,null,null,null,null,null,null,null,null,null,null,null,null,null,null,null,{"$f":"'Раздел IV'!E58","v":0},0]
["  конный спорт",52,null,null,null,null,null,null,null,null,null,null,null,null,null,null,null,null,null,null,null,null,null,{"$f":"'Раздел IV'!E59","v":0},0]
["  легкая атлетика",53,null,null,null,null,null,null,null,null,null,null,null,null,null,null,null,null,null,null,null,null,null,{"$f":"'Раздел IV'!E60","v":0},0]
["  лыжные гонки",54,null,null,null,null,null,null,null,null,null,null,null,null,null,null,null,null,null,null,null,null,null,{"$f":"'Раздел IV'!E61","v":0},0]
["  мини-футбол (футзал)",55,null,null,null,null,null,null,null,null,null,null,null,null,null,null,null,null,null,null,null,null,null,{"$f":"'Раздел IV'!E62","v":0},0]
["  настольный теннис",56,null,null,null,null,null,null,null,null,null,null,null,null,null,null,null,null,null,null,null,null,null,{"$f":"'Раздел IV'!E63","v":0},0]
["  пауэрлифтинг (троеборье)",57,null,null,null,null,null,null,null,null,null,null,null,null,null,null,null,null,null,null,null,null,null,{"$f":"'Раздел IV'!E64","v":0},0]
["  плавание",58,null,null,null,null,null,null,null,null,null,null,null,null,null,null,null,null,null,null,null,null,null,{"$f":"'Раздел IV'!E65","v":0},0]
["  спортивная гимнастика",59,null,null,null,null,null,null,null,null,null,null,null,null,null,null,null,null,null,null,null,null,null,{"$f":"'Раздел IV'!E66","v":0},0]
["  теннис",60,null,null,null,null,null,null,null,null,null,null,null,null,null,null,null,null,null,null,null,null,null,{"$f":"'Раздел IV'!E67","v":0},0]
["  тхэквондо (пхумсэ)",61,null,null,null,null,null,null,null,null,null,null,null,null,null,null,null,null,null,null,null,null,null,{"$f":"'Раздел IV'!E68","v":0},0]
["  футбол",62,null,null,null,null,null,null,null,null,null,null,null,null,null,null,null,null,null,null,null,null,null,{"$f":"'Раздел IV'!E69","v":0},0]
["Всего по виду спорта\n\"Спорт лиц с поражением ОДА\"",63,{"$f":"SUM(C70:C100)","v":0},{"$f":"SUM(D70:D100)","v":0},0,0,0,0,0,0,0,0,0,0,0,0,0,0,0,0,0,0,null,{"$f":"'Раздел IV'!E70","v":0},0]
["  в том числе по дисциплинам:\n  академическая гребля ",64,null,null,null,null,null,null,null,null,null,null,null,null,null,null,null,null,null,null,null,null,null,{"$f":"'Раздел IV'!E71","v":0},0]
["  бадминтон",65,null,null,null,null,null,null,null,null,null,null,null,null,null,null,null,null,null,null,null,null,null,{"$f":"'Раздел IV'!E72","v":0},0]
["  баскетбол на колясках",66,null,null,null,null,null,null,null,null,null,null,null,null,null,null,null,null,null,null,null,null,null,{"$f":"'Раздел IV'!E73","v":0},{"$f":"C72-D72","v":0}]
["  биатлон",67,null,null,null,null,null,null,null,null,null,null,null,null,null,null,null,null,null,null,null,null,null,{"$f":"'Раздел IV'!E74","v":0},0]
["  бочча",68,null,null,null,null,null,null,null,null,null,null,null,null,null,null,null,null,null,null,null,null,null,{"$f":"'Раздел IV'!E75","v":0},0]
["  велоспорт - трек",69,null,null,null,null,null,null,null,null,null,null,null,null,null,null,null,null,null,null,null,null,null,{"$f":"'Раздел IV'!E76","v":0},0]
["  велоспорт - шоссе",70,null,null,null,null,null,null,null,null,null,null,null,null,null,null,null,null,null,null,null,null,null,{"$f":"'Раздел IV'!E77","v":0},0]
["  волейбол сидя",71,null,null,null,null,null,null,null,null,null,null,null,null,null,null,null,null,null,null,null,null,null,{"$f":"'Раздел IV'!E78","v":0},0]
["  горнолыжный спорт",72,null,null,null,null,null,null,null,null,null,null,null,null,null,null,null,null,null,null,null,null,null,{"$f":"'Раздел IV'!E79","v":0},0]
["  гребля на байдарках и каноэ",73,null,null,null,null,null,null,null,null,null,null,null,null,null,null,null,null,null,null,null,null,null,{"$f":"'Раздел IV'!E80","v":0},0]
["  дартс",74,null,null,null,null,null,null,null,null,null,null,null,null,null,null,null,null,null,null,null,null,null,{"$f":"'Раздел IV'!E81","v":0},0]
["  конный спорт",75,null,null,null,null,null,null,null,null,null,null,null,null,null,null,null,null,null,null,null,null,null,{"$f":"'Раздел IV'!E82","v":0},0]
["  легкая атлетика",76,null,null,null,null,null,null,null,null,null,null,null,null,null,null,null,null,null,null,null,null,null,{"$f":"'Раздел IV'!E83","v":0},0]
["  лыжные гонки",77,null,null,null,null,null,null,null,null,null,null,null,null,null,null,null,null,null,null,null,null,null,{"$f":"'Раздел IV'!E84","v":0},0]
["  настольный теннис",78,null,null,null,null,null,null,null,null,null,null,null,null,null,null,null,null,null,null,null,null,null,{"$f":"'Раздел IV'!E85","v":0},0]
["  парусный спорт",79,null,null,null,null,null,null,null,null,null,null,null,null,null,null,null,null,null,null,null,null,null,{"$f":"'Раздел IV'!E86","v":0},0]
["  пауэрлифтинг",80,null,null,null,null,null,null,null,null,null,null,null,null,null,null,null,null,null,null,null,null,null,{"$f":"'Раздел IV'!E87","v":0},0]
["  плавание",81,null,null,null,null,null,null,null,null,null,null,null,null,null,null,null,null,null,null,null,null,null,{"$f":"'Раздел IV'!E88","v":0},0]
["  пулевая стрельба",82,null,null,null,null,null,null,null,null,null,null,null,null,null,null,null,null,null,null,null,null,null,{"$f":"'Раздел IV'!E89","v":0},0]
["  регби на колясках",83,null,null,null,null,null,null,null,null,null,null,null,null,null,null,null,null,null,null,null,null,null,{"$f":"'Раздел IV'!E90","v":0},0]
["  сноуборд",84,null,null,null,null,null,null,null,null,null,null,null,null,null,null,null,null,null,null,null,null,null,{"$f":"'Раздел IV'!E91","v":0},0]
["  спортивное ориентирование",85,null,null,null,null,null,null,null,null,null,null,null,null,null,null,null,null,null,null,null,null,null,{"$f":"'Раздел IV'!E92","v":0},0]
["  стендовая стрельба",86,null,null,null,null,null,null,null,null,null,null,null,null,null,null,null,null,null,null,null,null,null,{"$f":"'Раздел IV'!E93","v":0},0]
["  стрельба из лука",87,null,null,null,null,null,null,null,null,null,null,null,null,null,null,null,null,null,null,null,null,null,{"$f":"'Раздел IV'!E94","v":0},0]
["  танцы на колясках",88,null,null,null,null,null,null,null,null,null,null,null,null,null,null,null,null,null,null,null,null,null,{"$f":"'Раздел IV'!E95","v":0},0]
["  теннис на колясках",89,null,null,null,null,null,null,null,null,null,null,null,null,null,null,null,null,null,null,null,null,null,{"$f":"'Раздел IV'!E96","v":0},0]
["  фехтование",90,null,null,null,null,null,null,null,null,null,null,null,null,null,null,null,null,null,null,null,null,null,{"$f":"'Раздел IV'!E97","v":0},0]
["  футбол ампутантов",91,null,null,null,null,null,null,null,null,null,null,null,null,null,null,null,null,null,null,null,null,null,{"$f":"'Раздел IV'!E98","v":0},0]
["  хоккей - следж",92,null,null,null,null,null,null,null,null,null,null,null,null,null,null,null,null,null,null,null,null,null,{"$f":"'Раздел IV'!E99","v":0},0]
["  шахматы",93,null,null,null,null,null,null,null,null,null,null,null,null,null,null,null,null,null,null,null,null,null,{"$f":"'Раздел IV'!E100","v":0},0]
["  шашки",94,null,null,null,null,null,null,null,null,null,null,null,null,null,null,null,null,null,null,null,null,null,{"$f":"'Раздел IV'!E101","v":0},0]
["Всего по виду спорта \"Спорт слепых\"",95,{"$f":"SUM(C102:C124)","v":0},{"$f":"SUM(D102:D124)","v":0},0,0,0,0,0,0,0,0,0,0,0,0,0,0,0,0,0,0,null,{"$f":"'Раздел IV'!E102","v":0},0]
["  в том числе по дисциплинам:\n  армрестлинг",96,null,null,null,null,null,null,null,null,null,null,null,null,null,null,null,null,null,null,null,null,null,{"$f":"'Раздел IV'!E103","v":0},0]
["  биатлон",97,null,null,null,null,null,null,null,null,null,null,null,null,null,null,null,null,null,null,null,null,null,{"$f":"'Раздел IV'!E104","v":0},0]
["  борьба",98,null,null,null,null,null,null,null,null,null,null,null,null,null,null,null,null,null,null,null,null,null,{"$f":"'Раздел IV'!E105","v":0},0]
["  боулинг",99,null,null,null,null,null,null,null,null,null,null,null,null,null,null,null,null,null,null,null,null,null,{"$f":"'Раздел IV'!E106","v":0},0]
["  велоспорт-тандем - трек",100,null,null,null,null,null,null,null,null,null,null,null,null,null,null,null,null,null,null,null,null,null,{"$f":"'Раздел IV'!E107","v":0},0]
["  велоспорт-тандем - шоссе",101,null,null,null,null,null,null,null,null,null,null,null,null,null,null,null,null,null,null,null,null,null,{"$f":"'Раздел IV'!E108","v":0},0]
["  голбол",102,null,null,null,null,null,null,null,null,null,null,null,null,null,null,null,null,null,null,null,null,null,{"$f":"'Раздел IV'!E109","v":0},0]
["  горнолыжный спорт",103,null,null,null,null,null,null,null,null,null,null,null,null,null,null,null,null,null,null,null,null,null,{"$f":"'Раздел IV'!E110","v":0},0]
["  дзюдо",104,null,null,null,null,null,null,null,null,null,null,null,null,null,null,null,null,null,null,null,null,null,{"$f":"'Раздел IV'!E111","v":0},0]
["  легкая атлетика",105,null,null,null,null,null,null,null,null,null,null,null,null,null,null,null,null,null,null,null,null,null,{"$f":"'Раздел IV'!E112","v":0},0]
["  лыжные гонки",106,null,null,null,null,null,null,null,null,null,null,null,null,null,null,null,null,null,null,null,null,null,{"$f":"'Раздел IV'!E113","v":0},0]
["  настольный теннис",107,null,null,null,null,null,null,null,null,null,null,null,null,null,null,null,null,null,null,null,null,null,{"$f":"'Раздел IV'!E114","v":0},0]
["  пауэрлифтинг",108,null,null,null,null,null,null,null,null,null,null,null,null,null,null,null,null,null,null,null,null,null,{"$f":"'Раздел IV'!E115","v":0},0]
["  плавание",109,null,null,null,null,null,null,null,null,null,null,null,null,null,null,null,null,null,null,null,null,null,{"$f":"'Раздел IV'!E116","v":0},0]
["  пулевая стрельба",110,null,null,null,null,null,null,null,null,null,null,null,null,null,null,null,null,null,null,null,null,null,{"$f":"'Раздел IV'!E117","v":0},0]
["  самбо",111,null,null,null,null,null,null,null,null,null,null,null,null,null,null,null,null,null,null,null,null,null,{"$f":"'Раздел IV'!E118","v":0},0]
["  спортивный туризм - многоборье",112,null,null,null,null,null,null,null,null,null,null,null,null,null,null,null,null,null,null,null,null,null,{"$f":"'Раздел IV'!E119","v":0},0]
["  торбол",113,null,null,null,null,null,null,null,null,null,null,null,null,null,null,null,null,null,null,null,null,null,{"$f":"'Раздел IV'!E120","v":0},0]
["  триатлон",114,null,null,null,null,null,null,null,null,null,null,null,null,null,null,null,null,null,null,null,null,null,{"$f":"'Раздел IV'!E121","v":0},0]
["  футбол - мини-футбол 5х5 (B1)",115,null,null,null,null,null,null,null,null,null,null,null,null,null,null,null,null,null,null,null,null,null,{"$f":"'Раздел IV'!E122","v":0},0]
["  футбол - футзал 5х5 (B2, B3)",116,null,null,null,null,null,null,null,null,null,null,null,null,null,null,null,null,null,null,null,null,null,{"$f":"'Раздел IV'!E123","v":0},0]
["  шахматы",117,null,null,null,null,null,null,null,null,null,null,null,null,null,null,null,null,null,null,null,null,null,{"$f":"'Раздел IV'!E124","v":0},0]
["  шашки",118,null,null,null,null,null,null,null,null,null,null,null,null,null,null,null,null,null,null,null,null,null,{"$f":"'Раздел IV'!E125","v":0},0]
["Всего по виду спорта\n\"Футбол лиц с заболеванием ЦП\"",119,{"$f":"SUM(C126)","v":0},{"$f":"SUM(D126)","v":0},0,0,0,0,0,0,0,0,0,0,0,0,0,0,0,0,0,0,null,{"$f":"'Раздел IV'!E126","v":0},0]
["  в том числе по дисциплине:\n  футбол лиц с заболеванием ЦП",120,null,null,null,null,null,null,null,null,null,null,null,null,null,null,null,null,null,null,null,null,null,{"$f":"'Раздел IV'!E127","v":0},0]
["Всего по другим видам спорта, спортивным\nдисциплинам",121,{"$f":"SUM(C128:C135)","v":0},{"$f":"SUM(D128:D135)","v":0},0,0,0,0,0,0,0,0,0,0,0,0,0,0,0,0,0,0,null,{"$f":"'Раздел IV'!E128","v":0},0]
["  в том числе:\n  армрестлинг (ПОДА)",122,null,null,null,null,null,null,null,null,null,null,null,null,null,null,null,null,null,null,null,null,null,{"$f":"'Раздел IV'!E129","v":0},0]
["  водно-моторный спорт (ПОДА - мотолодка)",123,null,null,null,null,null,null,null,null,null,null,null,null,null,null,null,null,null,null,null,null,null,{"$f":"'Раздел IV'!E130","v":0},0]
["  каратэ (ПОДА - ката)",124,null,null,null,null,null,null,null,null,null,null,null,null,null,null,null,null,null,null,null,null,null,{"$f":"'Раздел IV'!E131","v":0},0]
["  кёрлинг (ПОДА - кёрлинг на колясках)",125,null,null,null,null,null,null,null,null,null,null,null,null,null,null,null,null,null,null,null,null,null,{"$f":"'Раздел IV'!E132","v":0},0]
["  скалолазание (ПОДА - лазание на трудность)",126,null,null,null,null,null,null,null,null,null,null,null,null,null,null,null,null,null,null,null,null,null,{"$f":"'Раздел IV'!E133","v":0},0]
["  триатлон (ПОДА - триатлон)",127,null,null,null,null,null,null,null,null,null,null,null,null,null,null,null,null,null,null,null,null,null,{"$f":"'Раздел IV'!E134","v":0},0]
["  тхэквондо (ВТФ - ПОДА)",128,null,null,null,null,null,null,null,null,null,null,null,null,null,null,null,null,null,null,null,null,null,{"$f":"'Раздел IV'!E135","v":0},0]
["  футбол (ПОДА - футбол на электроколясках)",129,null,null,null,null,null,null,null,null,null,null,null,null,null,null,null,null,null,null,null,null,null,{"$f":"'Раздел IV'!E136","v":0},0]
["Всего по базовым видам спорта (из строки 01)",130,null,null,null,null,null,null,null,null,null,null,null,null,null,null,null,null,null,null,null,null,null,{"$f":"'Раздел IV'!E137","v":0},{"$f":"C136-D136","v":0}]
["Всего по видам спорта и (или) спортивным\nдисциплинам (из строки 01)",131,{"$f":"SUM(C138:C139)","v":0},{"$f":"SUM(D138:D139)","v":0},0,0,0,0,0,0,0,0,0,0,0,0,0,0,0,0,0,0,null,{"$f":"'Раздел IV'!E138","v":0},0]
["  в том числе включенным:\n  в Паралимпийскую программу",132,{"$f":"SUM(C59,C62,C64,C70:C79,C81:C84,C86:C90,C93,C95:C96,C98,C103,C106:C112,C115,C120:C121,C131,C133:C134)","v":0},{"$f":"SUM(D59,D62,D64,D70:D79,D81:D84,D86:D90,D93,D95:D96,D98,D103,D106:D112,D115,D120:D121,D131,D133:D134)","v":0},0,0,0,0,0,0,0,0,0,0,0,0,0,0,0,0,0,0,null,{"$f":"'Раздел IV'!E139","v":0},0]
["  в Сурдлимпийскую программу",133,{"$f":"SUM(C17:C36,C38:C45)","v":0},{"$f":"SUM(D17:D36,D38:D45)","v":0},0,0,0,0,0,0,0,0,0,0,0,0,0,0,0,0,0,0,null,{"$f":"'Раздел IV'!E140","v":0},0]
["Ведомственная принадлежность\nорганизаций",134,{"$f":"SUM(C141:C143)","v":0},{"$f":"SUM(D141:D143)","v":0},0,0,0,0,0,0,0,0,0,0,0,0,0,0,0,0,0,0,null,{"$f":"'Раздел IV'!E141","v":0},0]
["  в том числе:\n  в сфере физической культуры и спорта",135,null,null,null,null,null,null,null,null,null,null,null,null,null,null,null,null,null,null,null,null,null,{"$f":"'Раздел IV'!E142","v":0},0]
["  в сфере образования",136,null,null,null,null,null,null,null,null,null,null,null,null,null,null,null,null,null,null,null,null,null,{"$f":"'Раздел IV'!E143","v":0},0]
["  в сфере труда и социальной защиты",137,null,null,null,null,null,null,null,null,null,null,null,null,null,null,null,null,null,null,null,null,null,{"$f":"'Раздел IV'!E144","v":0},0]

{"sheet":"Раздел VIII","index":8,"n_rows":27,"n_cols":20,"rows_kept":27,"cut":false,"hidden":false,"merged":[[1,1,2,1],[1,0,2,0],[4,4,4,5],[4,6,4,7],[4,8,4,9],[3,8,3,9],[1,3,1,19],[1,2,2,2],[4,10,4,15],[4,16,4,19],[2,4,2,5],[2,6,2,7],[2,8,2,9],[2,10,2,15],[2,16,2,19],[3,4,3,5],[3,6,3,7],[3,10,3,15],[3,16,3,19],[16,4,16,5],[5,4,5,5],[6,4,6,5],[7,4,7,5],[8,4,8,5],[9,4,9,5],[10,4,10,5],[11,4,11,5],[12,4,12,5],[13,4,13,5],[14,4,14,5],[15,4,15,5],[16,6,16,7],[11,6,11,7],[12,6,12,7],[13,6,13,7],[14,6,14,7],[5,6,5,7],[6,6,6,7],[7,6,7,7],[8,6,8,7],[9,6,9,7],[15,6,15,7],[5,8,5,9],[6,8,6,9],[5,10,5,15],[6,10,6,15],[7,8,7,9],[7,10,7,15],[8,10,8,15],[8,8,8,9],[9,8,9,9],[9,10,9,15],[10,10,10,15],[10,8,10,9],[15,10,15,15],[15,8,15,9],[10,6,10,7],[16,10,16,15],[16,8,16,9],[11,8,11,9],[11,10,11,15],[12,10,12,15],[12,8,12,9],[13,8,13,9],[13,10,13,15],[14,16,14,19],[13,16,13,19],[12,16,12,19],[11,16,11,19],[14,8,14,9],[14,10,14,15],[26,3,26,4],[25,7,25,8],[26,7,26,8],[25,15,25,16],[26,11,26,19],[25,3,25,4],[19,0,23,1],[22,3,22,4],[22,7,22,8],[22,11,22,19],[0,0,0,19],[23,3,23,4],[23,7,23,8],[23,11,23,19],[10,16,10,19],[9,16,9,19],[8,16,8,19],[7,16,7,19],[6,16,6,19],[5,16,5,19],[16,16,16,19],[15,16,15,19]]}
["Раздел VIII. Спортивное мастерство, человек"]
["Разряды, звания, награды","№\nстроки","Всего","в том числе по видам спорта, спортивным дисциплинам"]
[null,null,null,"спорт глухих","спорт лиц\nс интеллектуальными\nнарушениями",null,"спорт лиц\nс поражением ОДА",null,"спорт слепых",null,"футбол лиц\nс заболеванием ЦП",null,null,null,null,null,"другие"]
[1,2,3,4,5,null,6,null,7,null,8,null,null,null,null,null,9]
["Всего присвоено спортивных званий",1,{"$f":"SUM(C6:C9)","v":0},{"$f":"SUM(D6:D9)","v":0},null,null,{"$f":"SUM(G6:H9)","v":0},null,{"$f":"SUM(I6:J9)","v":0},null,{"$f":"SUM(K6:P9)","v":0},null,null,null,null,null,{"$f":"SUM(Q6:T9)","v":0}]
["  в том числе:\n  заслуженный мастер спорта России",2,{"$f":"SUM(D6:T6)","v":0}]
["  мастер спорта России международного\n  класса",3,{"$f":"SUM(D7:T7)","v":0}]
["  мастер спорта России",4,0]
["  гроссмейстер России",5,0]
["Всего присвоено спортивных разрядов",6,0,{"$f":"SUM(D11:D13)","v":0},{"$f":"SUM(E11:F13)","v":0},null,{"$f":"SUM(G11:H13)","v":0},null,{"$f":"SUM(I11:J13)","v":0},null,{"$f":"SUM(K11:P13)","v":0},null,null,null,null,null,{"$f":"SUM(Q11:T13)","v":0}]
["  в том числе:\n  кандидат в мастера спорта",7,0]
["  первый спортивный разряд",8,0]
["  другие разряды",9,0]
["Присвоено званий - заслуженный тренер\nРоссии",10,0]
["Присвоено званий - заслуженный работник\nфизической культуры Российской\nФедерации",11,0]
["Присуждены другие государственные\nпочетные звания и награды",12,0]
["Присуждены почетные звания и награды\nсубъекта Российской Федерации",13,0]
[]
[]
["Должностное лицо, ответственное\nза предоставление первичных статистических\nи (или) административных данных (лицо,\nуполномоченное предоставлять первичные\nстатистические и (или) административные\nданные от имени юридического лица"]
[]
[]
[]
[null,null,null,"(должность)",null,null,null,"(Ф.И.О.)",null,null,null,"(подпись)"]
[]
[null,null,null,null,null,null,null,null,null,null,null,"«",null,"»",null,null,null,20,null,"года"]
[null,null,null,"(номер контактного телефона)",null,null,null,"(электронная почта)",null,null,null,"(дата составления документа)"]